Workbook

Sheet PM PRESENCIAL
A1: PROFESIONALES MEDICOS ESPECIALISTAS | E1: PROGRAMACIÓN 2022 | M1: CUMPLIMIENTO 2022
E2: HOSPITAL LA SERENA | F2: HOSPITAL COQUIMBO | G2: HOSPITAL OVALLE | H2: HOSPITAL ILLAPEL | I2: HOSPITAL LOS VILOS | J2: COSAM TIERRAS BLANCAS | K2: PRAIS | L2: TOTAL PROGRAMADO | M2: HOSPITAL LA SERENA | N2: HOSPITAL COQUIMBO | O2: HOSPITAL OVALLE | P2: HOSPITAL ILLAPEL | Q2: HOSPITAL LOS VILOS | R2: COSAM TIERRAS BLANCAS | S2: PRAIS | T2: TOTAL PRODUCIDO
A3: REM | B3: COLUMNA | C3: N° | D3: ESPECIALIDAD | E3: 105100 | F3: 105101 | G3: 105102 | H3: 105103 | I3: 105108 | J3: 105600 | K3: 105011 | L3: SERVICIO DE SALUD | M3: 105100 | N3: 105101 | O3: 105102 | P3: 105103 | Q3: 105108 | R3: 105600 | S3: 105011 | T3: SERVICIO DE SALUD
A4: A -07 SECCIÓN A | B4: B | C4: 11 | D4: PEDIATRÍA | L4: =SUM(E4:K4) -> 0 | M4: 657 | N4: 2,703 | O4: 4,714 | P4: 3,887 | Q4: 1,942 | R4: 0 | S4: 0 | T4: =SUM(M4:S4) -> 13,903
A5: A -07 SECCIÓN A | B5: B | C5: 12 | D5: MEDICINA INTERNA | L5: =SUM(E5:K5) -> 0 | M5: 4,647 | N5: 8,524 | O5: 11,559 | P5: 12,013 | Q5: 34 | R5: 0 | S5: 0 | T5: =SUM(M5:S5) -> 36,777
A6: A -07 SECCIÓN A | B6: B | C6: 13 | D6: NEONATOLOGÍA | L6: 0 | M6: 1,233 | N6: 159 | O6: 305 | P6: 0 | Q6: 0 | R6: 0 | S6: 0 | T6: 1,697
A7: A -07 SECCIÓN A | B7: B | C7: 14 | D7: ENFERMEDAD RESPIRATORIA PEDIÁTRICA (BRONCOPULMONAR INFANTIL) | L7: 0 | M7: 1,475 | N7: 1,051 | O7: 1,174 | P7: 0 | Q7: 0 | R7: 0 | S7: 0 | T7: 3,700
A8: A -07 SECCIÓN A | B8: B | C8: 15 | D8: ENFERMEDAD RESPIRATORIA DE ADULTO (BRONCOPULMONAR) | L8: 0 | M8: 1,538 | N8: 1,765 | O8: 1,776 | P8: 0 | Q8: 0 | R8: 0 | S8: 0 | T8: 5,079
A9: A -07 SECCIÓN A | B9: B | C9: 16 | D9: CARDIOLOGÍA PEDIÁTRICA | L9: 0 | M9: 1,393 | N9: 761 | O9: 0 | P9: 0 | Q9: 0 | R9: 0 | S9: 0 | T9: 2,154
A10: A -07 SECCIÓN A | B10: B | C10: 17 | D10: CARDIOLOGÍA ADULTO | L10: 0 | M10: 6,500 | N10: 3,376 | O10: 1,373 | P10: 0 | Q10: 0 | R10: 0 | S10: 0 | T10: 11,249
A11: A -07 SECCIÓN A | B11: B | C11: 18 | D11: ENDOCRINOLOGÍA PEDIÁTRICA | L11: 0 | M11: 1,118 | N11: 1,185 | O11: 1,899 | P11: 0 | Q11: 0 | R11: 0 | S11: 0 | T11: 4,202
A12: A -07 SECCIÓN A | B12: B | C12: 19 | D12: ENDOCRINOLOGÍA ADULTO | L12: 0 | M12: 2,212 | N12: 1,098 | O12: 1,915 | P12: 0 | Q12: 0 | R12: 0 | S12: 0 | T12: 5,225
A13: A -07 SECCIÓN A | B13: B | C13: 20 | D13: GASTROENTEROLOGÍA PEDIÁTRICA | L13: 0 | M13: 1,382 | N13: 849 | O13: 994 | P13: 0 | Q13: 0 | R13: 0 | S13: 0 | T13: 3,225
A14: A -07 SECCIÓN A | B14: B | C14: 21 | D14: GASTROENTEROLOGÍA ADULTO | L14: 0 | M14: 2,560 | N14: 1,241 | O14: 1,473 | P14: 0 | Q14: 0 | R14: 0 | S14: 0 | T14: 5,274
A15: A -07 SECCIÓN A | B15: B | C15: 22 | D15: GENÉTICA CLÍNICA | L15: 0 | M15: 0 | N15: 0 | O15: 0 | P15: 0 | Q15: 0 | R15: 0 | S15: 0 | T15: 0
A16: A -07 SECCIÓN A | B16: B | C16: 23 | D16: HEMATO-ONCOLOGÍA INFANTIL | L16: 0 | M16: 814 | N16: 150 | O16: 0 | P16: 0 | Q16: 0 | R16: 0 | S16: 0 | T16: 964
A17: A -07 SECCIÓN A | B17: B | C17: 24 | D17: HEMATOLOGÍA ADULTO | L17: 0 | M17: 4,264 | N17: 0 | O17: 1,460 | P17: 0 | Q17: 0 | R17: 0 | S17: 0 | T17: 5,724
A18: A -07 SECCIÓN A | B18: B | C18: 25 | D18: NEFROLOGÍA PEDIÁTRICA | L18: 0 | M18: 421 | N18: 910 | O18: 0 | P18: 0 | Q18: 0 | R18: 0 | S18: 0 | T18: 1,331
A19: A -07 SECCIÓN A | B19: B | C19: 26 | D19: NEFROLOGÍA ADULTO | L19: 0 | M19: 1,188 | N19: 2,989 | O19: 2,712 | P19: 987 | Q19: 347 | R19: 0 | S19: 0 | T19: 8,223
A20: A -07 SECCIÓN A | B20: B | C20: 27 | D20: NUTRIÓLOGO PEDIÁTRICO | L20: 0 | M20: 638 | N20: 0 | O20: 0 | P20: 0 | Q20: 0 | R20: 0 | S20: 0 | T20: 638
A21: A -07 SECCIÓN A | B21: B | C21: 28 | D21: NUTRIÓLOGO ADULTO | L21: 0 | M21: 0 | N21: 0 | O21: 0 | P21: 0 | Q21: 0 | R21: 0 | S21: 0 | T21: 0
A22: A -07 SECCIÓN A | B22: B | C22: 29 | D22: REUMATOLOGÍA PEDIÁTRICA | L22: 0 | M22: 96 | N22: 0 | O22: 0 | P22: 0 | Q22: 0 | R22: 0 | S22: 0 | T22: 96
A23: A -07 SECCIÓN A | B23: B | C23: 30 | D23: REUMATOLOGÍA ADULTO | L23: 0 | M23: 2,406 | N23: 2,287 | O23: 0 | P23: 0 | Q23: 0 | R23: 0 | S23: 0 | T23: 4,693
A24: A -07 SECCIÓN A | B24: B | C24: 31 | D24: DERMATOLOGÍA | L24: 0 | M24: 0 | N24: 2,963 | O24: 1,694 | P24: 0 | Q24: 0 | R24: 0 | S24: 0 | T24: 4,657
A25: A -07 SECCIÓN A | B25: B | C25: 32 | D25: INFECTOLOGÍA PEDIÁTRICA | L25: 0 | M25: 0 | N25: 0 | O25: 0 | P25: 0 | Q25: 0 | R25: 0 | S25: 0 | T25: 0
A26: A -07 SECCIÓN A | B26: B | C26: 33 | D26: INFECTOLOGÍA ADULTO | L26: 0 | M26: 1,801 | N26: 2,488 | O26: 206 | P26: 0 | Q26: 0 | R26: 0 | S26: 0 | T26: 4,495
A27: A -07 SECCIÓN A | B27: B | C27: 34 | D27: INMUNOLOGÍA | L27: 0 | M27: 128 | N27: 0 | O27: 1,544 | P27: 0 | Q27: 0 | R27: 0 | S27: 0 | T27: 1,672
A28: A -07 SECCIÓN A | B28: B | C28: 35 | D28: GERIATRÍA | L28: 0 | M28: 28 | N28: 378 | O28: 0 | P28: 0 | Q28: 0 | R28: 0 | S28: 0 | T28: 406
A29: A -07 SECCIÓN A | B29: B | C29: 36 | D29: MEDICINA FÍSICA Y REHABILITACIÓN PEDIÁTRICA (FISIATRÍA PEDIÁTRICA) | L29: 0 | M29: 0 | N29: 0 | O29: 0 | P29: 0 | Q29: 0 | R29: 0 | S29: 0 | T29: 0
A30: A -07 SECCIÓN A | B30: B | C30: 37 | D30: MEDICINA FÍSICA Y REHABILITACIÓN ADULTO (FISIATRÍA ADULTO) | L30: 0 | M30: 1,227 | N30: 3,762 | O30: 332 | P30: 0 | Q30: 0 | R30: 0 | S30: 0 | T30: 5,321
A31: A -07 SECCIÓN A | B31: B | C31: 38 | D31: NEUROLOGÍA PEDIÁTRICA | L31: 0 | M31: 2,897 | N31: 2,698 | O31: 3,124 | P31: 0 | Q31: 0 | R31: 0 | S31: 0 | T31: 8,719
A32: A -07 SECCIÓN A | B32: B | C32: 39 | D32: NEUROLOGÍA ADULTO | L32: 0 | M32: 2,061 | N32: 3,138 | O32: 3,584 | P32: 0 | Q32: 0 | R32: 0 | S32: 0 | T32: 8,783
A33: A -07 SECCIÓN A | B33: B | C33: 40 | D33: ONCOLOGÍA MÉDICA | L33: 0 | M33: 8,603 | N33: 0 | O33: 230 | P33: 0 | Q33: 0 | R33: 0 | S33: 0 | T33: 8,833
A34: A -07 SECCIÓN A | B34: B | C34: 41 | D34: PSIQUIATRÍA PEDIÁTRICA Y DE LA ADOLESCENCIA | L34: 0 | M34: 1,802 | N34: 1441 | O34: 1,266 | P34: 0 | Q34: 0 | R34: 417 | S34: 0 | T34: 4,926
A35: A -07 SECCIÓN A | B35: B | C35: 42 | D35: PSIQUIATRÍA ADULTO | L35: 0 | M35: 3,370 | N35: 4623 | O35: 4,308 | P35: 4,864 | Q35: 0 | R35: 765 | S35: 878 | T35: 18,808
A36: A -07 SECCIÓN A | B36: B | C36: 43 | D36: CIRUGÍA PEDIÁTRICA | L36: 0 | M36: 3,512 | N36: 2,489 | O36: 1,526 | P36: 477 | Q36: 0 | R36: 0 | S36: 0 | T36: 8,004
A37: A -07 SECCIÓN A | B37: B | C37: 44 | D37: CIRUGÍA GENERAL ADULTO | L37: 0 | M37: 3,192 | N37: 7,306 | O37: 6,318 | P37: 4,969 | Q37: 0 | R37: 0 | S37: 0 | T37: 21,785
A38: A -07 SECCIÓN A | B38: B | C38: 45 | D38: CIRUGÍA DIGESTIVA (ALTA) | L38: 0 | M38: 1,320 | N38: 1,194 | O38: 0 | P38: 0 | Q38: 0 | R38: 0 | S38: 0 | T38: 2,514
A39: A -07 SECCIÓN A | B39: B | C39: 46 | D39: CIRUGÍA DE CABEZA, CUELLO Y MAXILOFACIAL | L39: 0 | M39: 1,623 | N39: 0 | O39: 0 | P39: 0 | Q39: 0 | R39: 0 | S39: 0 | T39: 1,623
A40: A -07 SECCIÓN A | B40: B | C40: 47 | D40: CIRUGÍA PLÁSTICA Y REPARADORA PEDIÁTRICA | L40: 0 | M40: 0 | N40: 0 | O40: 0 | P40: 0 | Q40: 0 | R40: 0 | S40: 0 | T40: 0
A41: A -07 SECCIÓN A | B41: B | C41: 48 | D41: CIRUGÍA PLÁSTICA Y REPARADORA ADULTO | L41: 0 | M41: 232 | N41: 0 | O41: 0 | P41: 0 | Q41: 0 | R41: 0 | S41: 0 | T41: 232
A42: A -07 SECCIÓN A | B42: B | C42: 49 | D42: COLOPROCTOLOGÍA (CIRUGIA DIGESTIVA BAJA) | L42: 0 | M42: 1,207 | N42: 1,170 | O42: 0 | P42: 0 | Q42: 0 | R42: 0 | S42: 0 | T42: 2,377
A43: A -07 SECCIÓN A | B43: B | C43: 50 | D43: CIRUGÍA TÓRAX | L43: 0 | M43: 662 | N43: 238 | O43: 0 | P43: 0 | Q43: 0 | R43: 0 | S43: 0 | T43: 900
A44: A -07 SECCIÓN A | B44: B | C44: 51 | D44: CIRUGÍA VASCULAR PERIFÉRICA | L44: 0 | M44: 1,061 | N44: 915 | O44: 580 | P44: 0 | Q44: 0 | R44: 0 | S44: 0 | T44: 2,556
A45: A -07 SECCIÓN A | B45: B | C45: 52 | D45: NEUROCIRUGÍA | L45: 0 | M45: 0 | N45: 7,053 | O45: 0 | P45: 0 | Q45: 0 | R45: 0 | S45: 0 | T45: 7,053
A46: A -07 SECCIÓN A | B46: B | C46: 53 | D46: CIRUGÍA CARDIOVASCULAR | L46: 0 | M46: 0 | N46: 0 | O46: 0 | P46: 0 | Q46: 0 | R46: 0 | S46: 0 | T46: 0
A47: A -07 SECCIÓN A | B47: B | C47: 54 | D47: ANESTESIOLOGÍA | L47: 0 | M47: 476 | N47: 2,983 | O47: 38 | P47: 1,988 | Q47: 0 | R47: 0 | S47: 0 | T47: 5,485
A48: A -07 SECCIÓN A | B48: B | C48: 55 | D48: OBSTETRICIA | L48: 0 | M48: 4,972 | N48: 5,287 | O48: 4,420 | P48: 2,059 | Q48: 1,274 | R48: 0 | S48: 0 | T48: 18,012
A49: A -07 SECCIÓN A | B49: B | C49: 56 | D49: GINECOLOGÍA PEDIÁTRICA Y DE LA ADOLESCENCIA | L49: 0 | M49: 0 | N49: 0 | O49: 693 | P49: 0 | Q49: 24 | R49: 0 | S49: 0 | T49: 717
A50: A -07 SECCIÓN A | B50: B | C50: 57 | D50: GINECOLOGÍA ADULTO | L50: 0 | M50: 6,221 | N50: 9,066 | O50: 6,610 | P50: 3,210 | Q50: 976 | R50: 0 | S50: 0 | T50: 26,083
A51: A -07 SECCIÓN A | B51: B | C51: 58 | D51: OFTALMOLOGÍA | L51: 0 | M51: 12,499 | N51: 0 | O51: 3,470 | P51: 4,665 | Q51: 0 | R51: 0 | S51: 0 | T51: 20,634
A52: A -07 SECCIÓN A | B52: B | C52: 59 | D52: OTORRINOLARINGOLOGÍA | L52: 0 | M52: 9,947 | N52: 0 | O52: 5,469 | P52: 2,660 | Q52: 0 | R52: 0 | S52: 0 | T52: 18,076
A53: A -07 SECCIÓN A | B53: B | C53: 60 | D53: TRAUMATOLOGÍA Y ORTOPEDIA PEDIÁTRICA | L53: 0 | M53: 0 | N53: 0 | O53: 0 | P53: 0 | Q53: 0 | R53: 0 | S53: 0 | T53: 0
A54: A -07 SECCIÓN A | B54: B | C54: 61 | D54: TRAUMATOLOGÍA Y ORTOPEDIA ADULTO | L54: 0 | M54: 0 | N54: 18,265 | O54: 8,933 | P54: 5,216 | Q54: 0 | R54: 0 | S54: 0 | T54: 32,414
A55: A -07 SECCIÓN A | B55: B | C55: 62 | D55: UROLOGÍA PEDIÁTRICA | L55: 0 | M55: 0 | N55: 0 | O55: 766 | P55: 0 | Q55: 0 | R55: 0 | S55: 0 | T55: 766
A56: A -07 SECCIÓN A | B56: B | C56: 63 | D56: UROLOGÍA ADULTO | L56: 0 | M56: 4,408 | N56: 7,044 | O56: 3,635 | P56: 3,306 | Q56: 0 | R56: 0 | S56: 0 | T56: 18,393
A57: A -07 SECCIÓN A | B57: B | C57: 64 | D57: MEDICINA FAMILIAR DEL NIÑO | L57: 0 | M57: 0 | N57: 0 | O57: 0 | P57: 0 | Q57: 0 | R57: 0 | S57: 0 | T57: 0
A58: A -07 SECCIÓN A | B58: B | C58: 65 | D58: MEDICINA FAMILIAR | L58: 0 | M58: 0 | N58: 0 | O58: 0 | P58: 0 | Q58: 0 | R58: 0 | S58: 0 | T58: 0
A59: A -07 SECCIÓN A | B59: B | C59: 66 | D59: MEDICINA FAMILIAR ADULTO | L59: 0 | M59: 0 | N59: 0 | O59: 0 | P59: 0 | Q59: 0 | R59: 0 | S59: 0 | T59: 0
A60: A -07 SECCIÓN A | B60: B | C60: 67 | D60: DIABETOLOGÍA | L60: 0 | M60: 674 | N60: 0 | O60: 0 | P60: 0 | Q60: 0 | R60: 0 | S60: 0 | T60: 674
A61: A -07 SECCIÓN A | B61: B | C61: 68 | D61: MEDICINA NUCLEAR (EXCLUYE INFORMES) | L61: 0 | M61: 0 | N61: 0 | O61: 0 | P61: 0 | Q61: 0 | R61: 0 | S61: 0 | T61: 0
A62: A -07 SECCIÓN A | B62: B | C62: 69 | D62: IMAGENOLOGÍA | L62: 0 | M62: 0 | N62: 0 | O62: 0 | P62: 0 | Q62: 0 | R62: 0 | S62: 0 | T62: 0
A63: A -07 SECCIÓN A | B63: B | C63: 70 | D63: RADIOTERAPIA ONCOLÓGICA | L63: 0 | M63: 0 | N63: 0 | O63: 0 | P63: 0 | Q63: 0 | R63: 0 | S63: 0 | T63: 0
A64: PROGRAMACION | D64: TOTAL | E64: =SUM(E4:E63) -> 0 | F64: =SUM(F4:F63) -> 0 | G64: 0 | H64: 0 | I64: 0 | J64: 0 | K64: 0 | L64: 0 | M64: =SUM(M4:M63) -> 108,465 | N64: =SUM(N4:N63) -> 113,549 | O64: =SUM(O4:O63) -> 90,100 | P64: 50,301 | Q64: 4,597 | R64: 1,182 | S64: 878 | T64: 369,072

Sheet PM TELEMEDICINA
A1: PROFESIONALES MEDICOS ESPECIALISTAS | F1: PROGRAMACIÓN 2022 | S1: PRODUCCIÓN 2022
F2: HOSPITAL LA SERENA | H2: HOSPITAL COQUIMBO | J2: HOSPITAL OVALLE | L2: HOSPITAL ILLAPEL | N2: COSAM TIERRAS BLANCAS | P2: PRAIS | R2: TOTAL PROGRAMADO POR SERVICIO DE SALUD | S2: HOSPITAL LA SERENA | U2: HOSPITAL COQUIMBO | W2: HOSPITAL OVALLE | Y2: HOSPITAL ILLAPEL | AA2: COSAM TIERRAS BLANCAS | AC2: PRAIS | AE2: TOTAL PRODUCIDO POR SERVICIO DE SALUD
A3: REM | B3: COL | C3: N° | D3: ESPECIALIDAD | E3: ACTIVIDAD | F3: 105100 | H3: 105101 | J3: 105102 | L3: 105103 | N3: 105600 | P3: 105011 | R3: SERVICIO DE SALUD | S3: 105100 | U3: 105101 | W3: 105102 | Y3: 105103 | AA3: 105600 | AC3: 105011 | AE3: SERVICIO DE SALUD
F4: TELEMEDICINA AMBULATORIA NUEVA | G4: TELEMEDICINA AMBULATORIA CONTROL | H4: TELEMEDICINA AMBULATORIA NUEVA | I4: TELEMEDICINA AMBULATORIA CONTROL | J4: TELEMEDICINA AMBULATORIA NUEVA | K4: TELEMEDICINA AMBULATORIA CONTROL | L4: TELEMEDICINA AMBULATORIA NUEVA | M4: TELEMEDICINA AMBULATORIA CONTROL | N4: TELEMEDICINA AMBULATORIA NUEVA | O4: TELEMEDICINA AMBULATORIA CONTROL | P4: TELEMEDICINA AMBULATORIA NUEVA | Q4: TELEMEDICINA AMBULATORIA CONTROL | R4: TOTAL PROGRAMADO | S4: TELEMEDICINA AMBULATORIA NUEVA | T4: TELEMEDICINA AMBULATORIA CONTROL | U4: TELEMEDICINA AMBULATORIA NUEVA | V4: TELEMEDICINA AMBULATORIA CONTROL | W4: TELEMEDICINA AMBULATORIA NUEVA | X4: TELEMEDICINA AMBULATORIA CONTROL | Y4: TELEMEDICINA AMBULATORIA NUEVA | Z4: TELEMEDICINA AMBULATORIA CONTROL | AA4: TELEMEDICINA AMBULATORIA NUEVA | AB4: TELEMEDICINA AMBULATORIA CONTROL | AC4: TELEMEDICINA AMBULATORIA NUEVA | AD4: TELEMEDICINA AMBULATORIA CONTROL | AE4: TOTAL
A5: A -30 SECCIÓN A | B5: (J+K+L+M) | C5: 18 | D5: PEDIATRÍA | E5: TELEINTERCOLSULTA SINCRONICA Y ASINCRONICA NUEVA, CONTROL | R5: =SUM(F5:Q5) -> 0 | S5: 0 | T5: 0 | U5: 0 | V5: 0 | W5: 0 | X5: 0 | Y5: 0 | Z5: 0 | AA5: 0 | AB5: 0 | AC5: 0 | AD5: 0 | AE5: =SUM(S5:AD5) -> 0
A6: A -30 SECCIÓN A | B6: (J+K+L+M) | C6: 19 | D6: MEDICINA INTERNA | E6: TELEINTERCOLSULTA SINCRONICA Y ASINCRONICA NUEVA, CONTROL | R6: =SUM(F6:Q6) -> 0 | S6: 0 | T6: 0 | U6: 0 | V6: 0 | W6: 0 | X6: 0 | Y6: 0 | Z6: 0 | AA6: 0 | AB6: 0 | AC6: 0 | AD6: 0 | AE6: =SUM(S6:AD6) -> 0
A7: A -30 SECCIÓN A | B7: (J+K+L+M) | C7: 20 | D7: NEONATOLOGÍA | E7: TELEINTERCOLSULTA SINCRONICA Y ASINCRONICA NUEVA, CONTROL | R7: 0 | S7: 0 | T7: 0 | U7: 0 | V7: 0 | W7: 0 | X7: 0 | Y7: 0 | Z7: 0 | AA7: 0 | AB7: 0 | AC7: 0 | AD7: 0 | AE7: 0
A8: A -30 SECCIÓN A | B8: (J+K+L+M) | C8: 21 | D8: ENFERMEDAD RESPIRATORIA PEDIÁTRICA (BRONCOPULMONAR INFANTIL) | E8: TELEINTERCOLSULTA SINCRONICA Y ASINCRONICA NUEVA, CONTROL | R8: 0 | S8: 0 | T8: 0 | U8: 0 | V8: 0 | W8: 0 | X8: 0 | Y8: 0 | Z8: 0 | AA8: 0 | AB8: 0 | AC8: 0 | AD8: 0 | AE8: 0
A9: A -30 SECCIÓN A | B9: (J+K+L+M) | C9: 22 | D9: ENFERMEDAD RESPIRATORIA DE ADULTO (BRONCOPULMONAR) | E9: TELEINTERCOLSULTA SINCRONICA Y ASINCRONICA NUEVA, CONTROL | R9: 0 | S9: 0 | T9: 0 | U9: 0 | V9: 0 | W9: 0 | X9: 0 | Y9: 0 | Z9: 0 | AA9: 0 | AB9: 0 | AC9: 0 | AD9: 0 | AE9: 0
A10: A -30 SECCIÓN A | B10: (J+K+L+M) | C10: 23 | D10: CARDIOLOGÍA PEDIÁTRICA | E10: TELEINTERCOLSULTA SINCRONICA Y ASINCRONICA NUEVA, CONTROL | R10: 0 | S10: 0 | T10: 0 | U10: 0 | V10: 0 | W10: 0 | X10: 0 | Y10: 0 | Z10: 0 | AA10: 0 | AB10: 0 | AC10: 0 | AD10: 0 | AE10: 0
A11: A -30 SECCIÓN A | B11: (J+K+L+M) | C11: 24 | D11: CARDIOLOGÍA ADULTO | E11: TELEINTERCOLSULTA SINCRONICA Y ASINCRONICA NUEVA, CONTROL | R11: 0 | S11: 0 | T11: 0 | U11: 0 | V11: 0 | W11: 0 | X11: 0 | Y11: 0 | Z11: 0 | AA11: 0 | AB11: 0 | AC11: 0 | AD11: 0 | AE11: 0
A12: A -30 SECCIÓN A | B12: (J+K+L+M) | C12: 25 | D12: ENDOCRINOLOGÍA PEDIÁTRICA | E12: TELEINTERCOLSULTA SINCRONICA Y ASINCRONICA NUEVA, CONTROL | R12: 0 | S12: 0 | T12: 0 | U12: 0 | V12: 0 | W12: 0 | X12: 0 | Y12: 0 | Z12: 0 | AA12: 0 | AB12: 0 | AC12: 0 | AD12: 0 | AE12: 0
A13: A -30 SECCIÓN A | B13: (J+K+L+M) | C13: 26 | D13: ENDOCRINOLOGÍA ADULTO | E13: TELEINTERCOLSULTA SINCRONICA Y ASINCRONICA NUEVA, CONTROL | R13: 0 | S13: 0 | T13: 0 | U13: 0 | V13: 0 | W13: 0 | X13: 0 | Y13: 0 | Z13: 0 | AA13: 0 | AB13: 0 | AC13: 0 | AD13: 0 | AE13: 0
A14: A -30 SECCIÓN A | B14: (J+K+L+M) | C14: 27 | D14: GASTROENTEROLOGÍA PEDIÁTRICA | E14: TELEINTERCOLSULTA SINCRONICA Y ASINCRONICA NUEVA, CONTROL | R14: 0 | S14: 0 | T14: 0 | U14: 0 | V14: 0 | W14: 0 | X14: 0 | Y14: 0 | Z14: 0 | AA14: 0 | AB14: 0 | AC14: 0 | AD14: 0 | AE14: 0
A15: A -30 SECCIÓN A | B15: (J+K+L+M) | C15: 28 | D15: GASTROENTEROLOGÍA ADULTO | E15: TELEINTERCOLSULTA SINCRONICA Y ASINCRONICA NUEVA, CONTROL | R15: 0 | S15: 0 | T15: 0 | U15: 0 | V15: 0 | W15: 0 | X15: 0 | Y15: 0 | Z15: 0 | AA15: 0 | AB15: 0 | AC15: 0 | AD15: 0 | AE15: 0
A16: A -30 SECCIÓN A | B16: (J+K+L+M) | C16: 29 | D16: GENÉTICA CLÍNICA | E16: TELEINTERCOLSULTA SINCRONICA Y ASINCRONICA NUEVA, CONTROL | R16: 0 | S16: 0 | T16: 0 | U16: 0 | V16: 0 | W16: 0 | X16: 0 | Y16: 0 | Z16: 0 | AA16: 0 | AB16: 0 | AC16: 0 | AD16: 0 | AE16: 0
A17: A -30 SECCIÓN A | B17: (J+K+L+M) | C17: 30 | D17: HEMATO-ONCOLOGÍA INFANTIL | E17: TELEINTERCOLSULTA SINCRONICA Y ASINCRONICA NUEVA, CONTROL | R17: 0 | S17: 0 | T17: 0 | U17: 0 | V17: 0 | W17: 0 | X17: 0 | Y17: 0 | Z17: 0 | AA17: 0 | AB17: 0 | AC17: 0 | AD17: 0 | AE17: 0
A18: A -30 SECCIÓN A | B18: (J+K+L+M) | C18: 31 | D18: HEMATOLOGÍA ADULTO | E18: TELEINTERCOLSULTA SINCRONICA Y ASINCRONICA NUEVA, CONTROL | R18: 0 | S18: 0 | T18: 0 | U18: 0 | V18: 0 | W18: 0 | X18: 0 | Y18: 0 | Z18: 0 | AA18: 0 | AB18: 0 | AC18: 0 | AD18: 0 | AE18: 0
A19: A -30 SECCIÓN A | B19: (J+K+L+M) | C19: 32 | D19: NEFROLOGÍA PEDIÁTRICA | E19: TELEINTERCOLSULTA SINCRONICA Y ASINCRONICA NUEVA, CONTROL | R19: 0 | S19: 0 | T19: 0 | U19: 0 | V19: 0 | W19: 0 | X19: 0 | Y19: 0 | Z19: 0 | AA19: 0 | AB19: 0 | AC19: 0 | AD19: 0 | AE19: 0
A20: A -30 SECCIÓN A | B20: (J+K+L+M) | C20: 33 | D20: NEFROLOGÍA ADULTO | E20: TELEINTERCOLSULTA SINCRONICA Y ASINCRONICA NUEVA, CONTROL | R20: 0 | S20: 0 | T20: 0 | U20: 0 | V20: 0 | W20: 0 | X20: 0 | Y20: 0 | Z20: 0 | AA20: 0 | AB20: 0 | AC20: 0 | AD20: 0 | AE20: 0
A21: A -30 SECCIÓN A | B21: (J+K+L+M) | C21: 34 | D21: NUTRIÓLOGO PEDIÁTRICO | E21: TELEINTERCOLSULTA SINCRONICA Y ASINCRONICA NUEVA, CONTROL | R21: 0 | S21: 0 | T21: 0 | U21: 0 | V21: 0 | W21: 0 | X21: 0 | Y21: 0 | Z21: 0 | AA21: 0 | AB21: 0 | AC21: 0 | AD21: 0 | AE21: 0
A22: A -30 SECCIÓN A | B22: (J+K+L+M) | C22: 35 | D22: NUTRIÓLOGO ADULTO | E22: TELEINTERCOLSULTA SINCRONICA Y ASINCRONICA NUEVA, CONTROL | R22: 0 | S22: 0 | T22: 0 | U22: 0 | V22: 0 | W22: 0 | X22: 0 | Y22: 0 | Z22: 0 | AA22: 0 | AB22: 0 | AC22: 0 | AD22: 0 | AE22: 0
A23: A -30 SECCIÓN A | B23: (J+K+L+M) | C23: 36 | D23: REUMATOLOGÍA PEDIÁTRICA | E23: TELEINTERCOLSULTA SINCRONICA Y ASINCRONICA NUEVA, CONTROL | R23: 0 | S23: 0 | T23: 0 | U23: 0 | V23: 0 | W23: 0 | X23: 0 | Y23: 0 | Z23: 0 | AA23: 0 | AB23: 0 | AC23: 0 | AD23: 0 | AE23: 0
A24: A -30 SECCIÓN A | B24: (J+K+L+M) | C24: 37 | D24: REUMATOLOGÍA ADULTO | E24: TELEINTERCOLSULTA SINCRONICA Y ASINCRONICA NUEVA, CONTROL | R24: 0 | S24: 0 | T24: 0 | U24: 0 | V24: 0 | W24: 0 | X24: 0 | Y24: 0 | Z24: 0 | AA24: 0 | AB24: 0 | AC24: 0 | AD24: 0 | AE24: 0
A25: A -30 SECCIÓN A | B25: (J+K+L+M) | C25: 38 | D25: DERMATOLOGÍA | E25: TELEINTERCOLSULTA SINCRONICA Y ASINCRONICA NUEVA, CONTROL | R25: 0 | S25: 0 | T25: 0 | U25: 0 | V25: 0 | W25: 0 | X25: 0 | Y25: 0 | Z25: 0 | AA25: 0 | AB25: 0 | AC25: 0 | AD25: 0 | AE25: 0
A26: A -30 SECCIÓN A | B26: (J+K+L+M) | C26: 39 | D26: INFECTOLOGÍA PEDIÁTRICA | E26: TELEINTERCOLSULTA SINCRONICA Y ASINCRONICA NUEVA, CONTROL | R26: 0 | S26: 0 | T26: 0 | U26: 0 | V26: 0 | W26: 0 | X26: 0 | Y26: 0 | Z26: 0 | AA26: 0 | AB26: 0 | AC26: 0 | AD26: 0 | AE26: 0
A27: A -30 SECCIÓN A | B27: (J+K+L+M) | C27: 40 | D27: INFECTOLOGÍA ADULTO | E27: TELEINTERCOLSULTA SINCRONICA Y ASINCRONICA NUEVA, CONTROL | R27: 0 | S27: 0 | T27: 0 | U27: 0 | V27: 0 | W27: 0 | X27: 0 | Y27: 0 | Z27: 0 | AA27: 0 | AB27: 0 | AC27: 0 | AD27: 0 | AE27: 0
A28: A -30 SECCIÓN A | B28: (J+K+L+M) | C28: 41 | D28: INMUNOLOGÍA | E28: TELEINTERCOLSULTA SINCRONICA Y ASINCRONICA NUEVA, CONTROL | R28: 0 | S28: 0 | T28: 0 | U28: 0 | V28: 0 | W28: 0 | X28: 0 | Y28: 0 | Z28: 0 | AA28: 0 | AB28: 0 | AC28: 0 | AD28: 0 | AE28: 0
A29: A -30 SECCIÓN A | B29: (J+K+L+M) | C29: 42 | D29: GERIATRÍA | E29: TELEINTERCOLSULTA SINCRONICA Y ASINCRONICA NUEVA, CONTROL | R29: 0 | S29: 0 | T29: 0 | U29: 0 | V29: 0 | W29: 0 | X29: 0 | Y29: 0 | Z29: 0 | AA29: 0 | AB29: 0 | AC29: 0 | AD29: 0 | AE29: 0
A30: A -30 SECCIÓN A | B30: (J+K+L+M) | C30: 43 | D30: MEDICINA FÍSICA Y REHABILITACIÓN PEDIÁTRICA (FISIATRÍA PEDIÁTRICA) | E30: TELEINTERCOLSULTA SINCRONICA Y ASINCRONICA NUEVA, CONTROL | R30: 0 | S30: 0 | T30: 0 | U30: 0 | V30: 0 | W30: 0 | X30: 0 | Y30: 0 | Z30: 0 | AA30: 0 | AB30: 0 | AC30: 0 | AD30: 0 | AE30: 0
A31: A -30 SECCIÓN A | B31: (J+K+L+M) | C31: 44 | D31: MEDICINA FÍSICA Y REHABILITACIÓN ADULTO (FISIATRÍA ADULTO) | E31: TELEINTERCOLSULTA SINCRONICA Y ASINCRONICA NUEVA, CONTROL | R31: 0 | S31: 0 | T31: 0 | U31: 0 | V31: 0 | W31: 0 | X31: 0 | Y31: 0 | Z31: 0 | AA31: 0 | AB31: 0 | AC31: 0 | AD31: 0 | AE31: 0
A32: A -30 SECCIÓN A | B32: (J+K+L+M) | C32: 45 | D32: NEUROLOGÍA PEDIÁTRICA | E32: TELEINTERCOLSULTA SINCRONICA Y ASINCRONICA NUEVA, CONTROL | R32: 0 | S32: 0 | T32: 0 | U32: 6 | V32: 162 | W32: 0 | X32: 0 | Y32: 0 | Z32: 0 | AA32: 0 | AB32: 0 | AC32: 0 | AD32: 0 | AE32: 168
A33: A -30 SECCIÓN A | B33: (J+K+L+M) | C33: 46 | D33: NEUROLOGÍA ADULTO | E33: TELEINTERCOLSULTA SINCRONICA Y ASINCRONICA NUEVA, CONTROL | R33: 0 | S33: 0 | T33: 0 | U33: 0 | V33: 0 | W33: 0 | X33: 0 | Y33: 0 | Z33: 0 | AA33: 0 | AB33: 0 | AC33: 0 | AD33: 0 | AE33: 0
A34: A -30 SECCIÓN A | B34: (J+K+L+M) | C34: 47 | D34: ONCOLOGÍA MÉDICA | E34: TELEINTERCOLSULTA SINCRONICA Y ASINCRONICA NUEVA, CONTROL | R34: 0 | S34: 0 | T34: 0 | U34: 0 | V34: 0 | W34: 0 | X34: 0 | Y34: 0 | Z34: 0 | AA34: 0 | AB34: 0 | AC34: 0 | AD34: 0 | AE34: 0
A35: A -30 SECCIÓN A | B35: (J+K+L+M) | C35: 48 | D35: PSIQUIATRÍA PEDIÁTRICA Y DE LA ADOLESCENCIA | E35: TELEINTERCOLSULTA SINCRONICA Y ASINCRONICA NUEVA, CONTROL | R35: 0 | S35: 0 | T35: 0 | U35: 0 | V35: 0 | W35: 0 | X35: 0 | Y35: 0 | Z35: 0 | AA35: 0 | AB35: 0 | AC35: 0 | AD35: 0 | AE35: 0
A36: A -30 SECCIÓN A | B36: (J+K+L+M) | C36: 49 | D36: PSIQUIATRÍA ADULTO | E36: TELEINTERCOLSULTA SINCRONICA Y ASINCRONICA NUEVA, CONTROL | R36: 0 | S36: 0 | T36: 0 | U36: 0 | V36: 0 | W36: 0 | X36: 0 | Y36: 0 | Z36: 0 | AA36: 0 | AB36: 0 | AC36: 0 | AD36: 0 | AE36: 0
A37: A -30 SECCIÓN A | B37: (J+K+L+M) | C37: 50 | D37: CIRUGÍA PEDIÁTRICA | E37: TELEINTERCOLSULTA SINCRONICA Y ASINCRONICA NUEVA, CONTROL | R37: 0 | S37: 0 | T37: 0 | U37: 0 | V37: 0 | W37: 0 | X37: 0 | Y37: 0 | Z37: 0 | AA37: 0 | AB37: 0 | AC37: 0 | AD37: 0 | AE37: 0
A38: A -30 SECCIÓN A | B38: (J+K+L+M) | C38: 51 | D38: CIRUGÍA GENERAL ADULTO | E38: TELEINTERCOLSULTA SINCRONICA Y ASINCRONICA NUEVA, CONTROL | R38: 0 | S38: 0 | T38: 0 | U38: 0 | V38: 0 | W38: 0 | X38: 0 | Y38: 0 | Z38: 0 | AA38: 0 | AB38: 0 | AC38: 0 | AD38: 0 | AE38: 0
A39: A -30 SECCIÓN A | B39: (J+K+L+M) | C39: 52 | D39: CIRUGÍA DIGESTIVA (ALTA) | E39: TELEINTERCOLSULTA SINCRONICA Y ASINCRONICA NUEVA, CONTROL | R39: 0 | S39: 0 | T39: 0 | U39: 0 | V39: 0 | W39: 0 | X39: 0 | Y39: 0 | Z39: 0 | AA39: 0 | AB39: 0 | AC39: 0 | AD39: 0 | AE39: 0
A40: A -30 SECCIÓN A | B40: (J+K+L+M) | C40: 53 | D40: CIRUGÍA DE CABEZA, CUELLO Y MAXILOFACIAL | E40: TELEINTERCOLSULTA SINCRONICA Y ASINCRONICA NUEVA, CONTROL | R40: 0 | S40: 0 | T40: 0 | U40: 0 | V40: 0 | W40: 0 | X40: 0 | Y40: 0 | Z40: 0 | AA40: 0 | AB40: 0 | AC40: 0 | AD40: 0 | AE40: 0
A41: A -30 SECCIÓN A | B41: (J+K+L+M) | C41: 54 | D41: CIRUGÍA PLÁSTICA Y REPARADORA PEDIÁTRICA | E41: TELEINTERCOLSULTA SINCRONICA Y ASINCRONICA NUEVA, CONTROL | R41: 0 | S41: 0 | T41: 0 | U41: 0 | V41: 0 | W41: 0 | X41: 0 | Y41: 0 | Z41: 0 | AA41: 0 | AB41: 0 | AC41: 0 | AD41: 0 | AE41: 0
A42: A -30 SECCIÓN A | B42: (J+K+L+M) | C42: 55 | D42: CIRUGÍA PLÁSTICA Y REPARADORA ADULTO | E42: TELEINTERCOLSULTA SINCRONICA Y ASINCRONICA NUEVA, CONTROL | R42: 0 | S42: 0 | T42: 0 | U42: 0 | V42: 0 | W42: 0 | X42: 0 | Y42: 0 | Z42: 0 | AA42: 0 | AB42: 0 | AC42: 0 | AD42: 0 | AE42: 0
A43: A -30 SECCIÓN A | B43: (J+K+L+M) | C43: 56 | D43: COLOPROCTOLOGÍA (CIRUGIA DIGESTIVA BAJA) | E43: TELEINTERCOLSULTA SINCRONICA Y ASINCRONICA NUEVA, CONTROL | R43: 0 | S43: 0 | T43: 0 | U43: 0 | V43: 0 | W43: 0 | X43: 0 | Y43: 0 | Z43: 0 | AA43: 0 | AB43: 0 | AC43: 0 | AD43: 0 | AE43: 0
A44: A -30 SECCIÓN A | B44: (J+K+L+M) | C44: 57 | D44: CIRUGÍA TÓRAX | E44: TELEINTERCOLSULTA SINCRONICA Y ASINCRONICA NUEVA, CONTROL | R44: 0 | S44: 0 | T44: 0 | U44: 0 | V44: 0 | W44: 0 | X44: 0 | Y44: 0 | Z44: 0 | AA44: 0 | AB44: 0 | AC44: 0 | AD44: 0 | AE44: 0
A45: A -30 SECCIÓN A | B45: (J+K+L+M) | C45: 58 | D45: CIRUGÍA VASCULAR PERIFÉRICA | E45: TELEINTERCOLSULTA SINCRONICA Y ASINCRONICA NUEVA, CONTROL | R45: 0 | S45: 0 | T45: 0 | U45: 0 | V45: 0 | W45: 0 | X45: 0 | Y45: 0 | Z45: 0 | AA45: 0 | AB45: 0 | AC45: 0 | AD45: 0 | AE45: 0
A46: A -30 SECCIÓN A | B46: (J+K+L+M) | C46: 59 | D46: NEUROCIRUGÍA | E46: TELEINTERCOLSULTA SINCRONICA Y ASINCRONICA NUEVA, CONTROL | R46: 0 | S46: 0 | T46: 0 | U46: 0 | V46: 0 | W46: 0 | X46: 0 | Y46: 0 | Z46: 0 | AA46: 0 | AB46: 0 | AC46: 0 | AD46: 0 | AE46: 0
A47: A -30 SECCIÓN A | B47: (J+K+L+M) | C47: 60 | D47: CIRUGÍA CARDIOVASCULAR | E47: TELEINTERCOLSULTA SINCRONICA Y ASINCRONICA NUEVA, CONTROL | R47: 0 | S47: 0 | T47: 0 | U47: 0 | V47: 0 | W47: 0 | X47: 0 | Y47: 0 | Z47: 0 | AA47: 0 | AB47: 0 | AC47: 0 | AD47: 0 | AE47: 0
A48: A -30 SECCIÓN A | B48: (J+K+L+M) | C48: 61 | D48: ANESTESIOLOGÍA | E48: TELEINTERCOLSULTA SINCRONICA Y ASINCRONICA NUEVA, CONTROL | R48: 0 | S48: 0 | T48: 0 | U48: 0 | V48: 0 | W48: 0 | X48: 0 | Y48: 0 | Z48: 0 | AA48: 0 | AB48: 0 | AC48: 0 | AD48: 0 | AE48: 0
A49: A -30 SECCIÓN A | B49: (J+K+L+M) | C49: 62 | D49: OBSTETRICIA | E49: TELEINTERCOLSULTA SINCRONICA Y ASINCRONICA NUEVA, CONTROL | R49: 0 | S49: 0 | T49: 0 | U49: 0 | V49: 0 | W49: 0 | X49: 0 | Y49: 0 | Z49: 0 | AA49: 0 | AB49: 0 | AC49: 0 | AD49: 0 | AE49: 0
A50: A -30 SECCIÓN A | B50: (J+K+L+M) | C50: 63 | D50: GINECOLOGÍA PEDIÁTRICA Y DE LA ADOLESCENCIA | E50: TELEINTERCOLSULTA SINCRONICA Y ASINCRONICA NUEVA, CONTROL | R50: 0 | S50: 0 | T50: 0 | U50: 0 | V50: 0 | W50: 0 | X50: 0 | Y50: 0 | Z50: 0 | AA50: 0 | AB50: 0 | AC50: 0 | AD50: 0 | AE50: 0
A51: A -30 SECCIÓN A | B51: (J+K+L+M) | C51: 64 | D51: GINECOLOGÍA ADULTO | E51: TELEINTERCOLSULTA SINCRONICA Y ASINCRONICA NUEVA, CONTROL | R51: 0 | S51: 0 | T51: 0 | U51: 0 | V51: 0 | W51: 0 | X51: 0 | Y51: 0 | Z51: 0 | AA51: 0 | AB51: 0 | AC51: 0 | AD51: 0 | AE51: 0
A52: A -30 SECCIÓN A | B52: (J+K+L+M) | C52: 65 | D52: OFTALMOLOGÍA | E52: TELEINTERCOLSULTA SINCRONICA Y ASINCRONICA NUEVA, CONTROL | R52: 0 | S52: 0 | T52: 0 | U52: 0 | V52: 0 | W52: 0 | X52: 0 | Y52: 0 | Z52: 0 | AA52: 0 | AB52: 0 | AC52: 0 | AD52: 0 | AE52: 0
A53: A -30 SECCIÓN A | B53: (J+K+L+M) | C53: 66 | D53: OTORRINOLARINGOLOGÍA | E53: TELEINTERCOLSULTA SINCRONICA Y ASINCRONICA NUEVA, CONTROL | R53: 0 | S53: 0 | T53: 0 | U53: 0 | V53: 0 | W53: 0 | X53: 0 | Y53: 0 | Z53: 0 | AA53: 0 | AB53: 0 | AC53: 0 | AD53: 0 | AE53: 0
A54: A -30 SECCIÓN A | B54: (J+K+L+M) | C54: 67 | D54: TRAUMATOLOGÍA Y ORTOPEDIA PEDIÁTRICA | E54: TELEINTERCOLSULTA SINCRONICA Y ASINCRONICA NUEVA, CONTROL | R54: 0 | S54: 0 | T54: 0 | U54: 0 | V54: 0 | W54: 0 | X54: 0 | Y54: 0 | Z54: 0 | AA54: 0 | AB54: 0 | AC54: 0 | AD54: 0 | AE54: 0
A55: A -30 SECCIÓN A | B55: (J+K+L+M) | C55: 68 | D55: TRAUMATOLOGÍA Y ORTOPEDIA ADULTO | E55: TELEINTERCOLSULTA SINCRONICA Y ASINCRONICA NUEVA, CONTROL | R55: 0 | S55: 0 | T55: 0 | U55: 0 | V55: 0 | W55: 0 | X55: 0 | Y55: 0 | Z55: 0 | AA55: 0 | AB55: 0 | AC55: 0 | AD55: 0 | AE55: 0
A56: A -30 SECCIÓN A | B56: (J+K+L+M) | C56: 69 | D56: UROLOGÍA PEDIÁTRICA | E56: TELEINTERCOLSULTA SINCRONICA Y ASINCRONICA NUEVA, CONTROL | R56: 0 | S56: 0 | T56: 0 | U56: 0 | V56: 0 | W56: 0 | X56: 0 | Y56: 0 | Z56: 0 | AA56: 0 | AB56: 0 | AC56: 0 | AD56: 0 | AE56: 0
A57: A -30 SECCIÓN A | B57: (J+K+L+M) | C57: 70 | D57: UROLOGÍA ADULTO | E57: TELEINTERCOLSULTA SINCRONICA Y ASINCRONICA NUEVA, CONTROL | R57: 0 | S57: 0 | T57: 0 | U57: 0 | V57: 0 | W57: 0 | X57: 0 | Y57: 0 | Z57: 0 | AA57: 0 | AB57: 0 | AC57: 0 | AD57: 0 | AE57: 0
A58: A -30 SECCIÓN A | B58: (J+K+L+M) | C58: 71 | D58: MEDICINA FAMILIAR DEL NIÑO | E58: TELEINTERCOLSULTA SINCRONICA Y ASINCRONICA NUEVA, CONTROL | R58: 0 | S58: 0 | T58: 0 | U58: 0 | V58: 0 | W58: 0 | X58: 0 | Y58: 0 | Z58: 0 | AA58: 0 | AB58: 0 | AC58: 0 | AD58: 0 | AE58: 0
A59: A -30 SECCIÓN A | B59: (J+K+L+M) | C59: 72 | D59: MEDICINA FAMILIAR | E59: TELEINTERCOLSULTA SINCRONICA Y ASINCRONICA NUEVA, CONTROL | R59: 0 | S59: 0 | T59: 0 | U59: 0 | V59: 0 | W59: 0 | X59: 0 | Y59: 0 | Z59: 0 | AA59: 0 | AB59: 0 | AC59: 0 | AD59: 0 | AE59: 0
A60: A -30 SECCIÓN A | B60: (J+K+L+M) | C60: 73 | D60: MEDICINA FAMILIAR ADULTO | E60: TELEINTERCOLSULTA SINCRONICA Y ASINCRONICA NUEVA, CONTROL | R60: 0 | S60: 0 | T60: 0 | U60: 0 | V60: 0 | W60: 0 | X60: 0 | Y60: 0 | Z60: 0 | AA60: 0 | AB60: 0 | AC60: 0 | AD60: 0 | AE60: 0
A61: A -30 SECCIÓN A | B61: (J+K+L+M) | C61: 74 | D61: DIABETOLOGÍA | E61: TELEINTERCOLSULTA SINCRONICA Y ASINCRONICA NUEVA, CONTROL | R61: 0 | S61: 0 | T61: 0 | U61: 0 | V61: 0 | W61: 0 | X61: 0 | Y61: 0 | Z61: 0 | AA61: 0 | AB61: 0 | AC61: 0 | AD61: 0 | AE61: 0
A62: A -30 SECCIÓN A | B62: (J+K+L+M) | C62: 75 | D62: MEDICINA INTENSIVA | E62: TELEINTERCOLSULTA SINCRONICA Y ASINCRONICA NUEVA, CONTROL | R62: 0 | S62: 0 | T62: 0 | U62: 0 | V62: 0 | W62: 0 | X62: 0 | Y62: 0 | Z62: 0 | AA62: 0 | AB62: 0 | AC62: 0 | AD62: 0 | AE62: 0
A63: A -30 SECCIÓN A | B63: (J+K+L+M) | C63: 76 | D63: IMAGENOLOGÍA | E63: TELEINTERCOLSULTA SINCRONICA Y ASINCRONICA NUEVA, CONTROL | R63: 0 | S63: 0 | T63: 0 | U63: 0 | V63: 0 | W63: 0 | X63: 0 | Y63: 0 | Z63: 0 | AA63: 0 | AB63: 0 | AC63: 0 | AD63: 0 | AE63: 0
A64: A -30 SECCIÓN A | B64: (J+K+L+M) | C64: 77 | D64: RADIOTERAPIA ONCOLÓGICA | E64: TELEINTERCOLSULTA SINCRONICA Y ASINCRONICA NUEVA, CONTROL | R64: 0 | S64: 0 | T64: 0 | U64: 0 | V64: 0 | W64: 0 | X64: 0 | Y64: 0 | Z64: 0 | AA64: 0 | AB64: 0 | AC64: 0 | AD64: 0 | AE64: 0
A65: A -28 SECCIÓN D2 | B65: C | C65: 345 | D65: MEDICO FISIATRA | E65: EVALUACION INTERMEDIA REMOTA | R65: 0 | T65: 0 | V65: 0 | X65: 15 | Z65: 0 | AB65: 0 | AD65: 0 | AE65: 15
A66: A -28 SECCIÓN D3 | B66: C | C66: 349 | D66: MEDICO FISIATRA | E66: SESIÓN DE REHABILITACION VIA REMOTA (TELEREHABILITACIÓN) | R66: 0 | T66: 0 | V66: 0 | X66: 0 | Z66: 0 | AB66: 0 | AD66: 0 | AE66: 0
A67: A -28 SECCIÓN D4 | B67: C | C67: 353 | D67: MEDICO FISIATRA | E67: EDUCACION REMOTA A USUARIO Y/O CUIDADOR | R67: 0 | T67: 0 | V67: 0 | X67: 0 | Z67: 0 | AB67: 0 | AD67: 0 | AE67: 0
A68: A -32 SECCIÓN C | B68: B | C68: 30 | D68: PEDIATRÍA (INCLUYE TOTALIDAD DE PRODUCCIÓN DE SUBESPECIALIDADES DE PEDIATRÍA ) | E68: TELECONSULTA NUEVA Y CONTROL | R68: 0 | T68: 764 | V68: 2749 | X68: 641 | Z68: 0 | AB68: 0 | AD68: 0 | AE68: 4154
A69: A -32 SECCIÓN C | B69: B | C69: 31 | D69: MEDICINA INTERNA | E69: TELECONSULTA NUEVA Y CONTROL | R69: 0 | T69: 85 | V69: 886 | X69: 3321 | Z69: 0 | AB69: 0 | AD69: 0 | AE69: 4292
A70: A -32 SECCIÓN C | B70: B | C70: 32 | D70: CIRUGÍA | E70: TELECONSULTA NUEVA Y CONTROL | R70: =SUM(F70:Q70) -> 0 | T70: 31 | V70: 13 | X70: 0 | Z70: 0 | AB70: 0 | AD70: 0 | AE70: =SUM(S70:AD70) -> 44
A71: A -32 SECCIÓN C | B71: B | C71: 33 | D71: ENFERMEDAD RESPIRATORIA DE ADULTO (BRONCOPULMONAR) | E71: TELECONSULTA NUEVA Y CONTROL | R71: 0 | T71: 144 | V71: 58 | X71: 1 | Z71: 0 | AB71: 0 | AD71: 0 | AE71: 203
A72: A -32 SECCIÓN C | B72: B | C72: 34 | D72: CARDIOLOGÍA ADULTO | E72: TELECONSULTA NUEVA Y CONTROL | R72: 0 | T72: 15 | V72: 540 | X72: 0 | Z72: 0 | AB72: 0 | AD72: 0 | AE72: 555
A73: A -32 SECCIÓN C | B73: B | C73: 35 | D73: ENDOCRINOLOGÍA ADULTO | E73: TELECONSULTA NUEVA Y CONTROL | R73: 0 | T73: 448 | V73: 178 | X73: 1 | Z73: 0 | AB73: 0 | AD73: 0 | AE73: 627
A74: A -32 SECCIÓN C | B74: B | C74: 36 | D74: REUMATOLOGÍA ADULTO | E74: TELECONSULTA NUEVA Y CONTROL | R74: 0 | T74: 298 | V74: 179 | X74: 0 | Z74: 0 | AB74: 0 | AD74: 0 | AE74: 477
A75: A -32 SECCIÓN C | B75: B | C75: 37 | D75: INFECTOLOGÍA ADULTO | E75: TELECONSULTA NUEVA Y CONTROL | R75: 0 | T75: 3 | V75: 50 | X75: 0 | Z75: 0 | AB75: 0 | AD75: 0 | AE75: 53
A76: A -32 SECCIÓN C | B76: B | C76: 38 | D76: DIABETOLOGÍA | E76: TELECONSULTA NUEVA Y CONTROL | R76: 0 | T76: 3 | V76: 4 | X76: 0 | Z76: 0 | AB76: 0 | AD76: 0 | AE76: 7
A77: A -32 SECCIÓN C | B77: B | C77: 39 | D77: PSIQUIATRÍA | E77: TELECONSULTA NUEVA Y CONTROL | R77: 0 | T77: 2176 | V77: 553 | X77: 509 | Z77: 0 | AB77: 411 | AD77: 834 | AE77: 4483
A78: A -32 SECCIÓN C | B78: B | C78: 40 | D78: OFTALMOLOGÍA | E78: TELECONSULTA NUEVA Y CONTROL | R78: 0 | T78: 671 | V78: 0 | X78: 0 | Z78: 0 | AB78: 0 | AD78: 0 | AE78: 671
A79: A -32 SECCIÓN C | B79: B | C79: 41 | D79: OTORRINOLARINGOLOGÍA | E79: TELECONSULTA NUEVA Y CONTROL | R79: 0 | T79: 1 | V79: 0 | X79: 0 | Z79: 0 | AB79: 0 | AD79: 0 | AE79: 1
A80: A -32 SECCIÓN C | B80: B | C80: 42 | D80: OBSTETRICIA Y GINECOLOGÍA | E80: TELECONSULTA NUEVA Y CONTROL | R80: 0 | T80: 185 | V80: 61 | X80: 0 | Z80: 0 | AB80: 0 | AD80: 0 | AE80: 246
A81: A -32 SECCIÓN C | B81: B | C81: 43 | D81: TRAUMATOLOGÍA | E81: TELECONSULTA NUEVA Y CONTROL | R81: 0 | T81: 0 | V81: 0 | X81: 0 | Z81: 0 | AB81: 0 | AD81: 0 | AE81: 0
A82: A -32 SECCIÓN C | B82: B | C82: 44 | D82: OTRAS ESPECIALIDADES ADULTO | E82: TELECONSULTA NUEVA Y CONTROL | R82: 0 | T82: 11224 | V82: 4113 | X82: 3862 | Z82: 0 | AB82: 0 | AD82: 0 | AE82: =SUM(S82:AD82) -> 19199
E83: TOTAL PROGRAMADO CONTACTO TELEFONICO CONTROL* | R83: 0 | AE83: 0
E84: PROGRAMACION TOTAL PROFESIONALES MEDICOS ESPECIALISTAS 2022 | F84: =SUM(F5:F83) -> 0 | G84: =SUM(G5:G83) -> 0 | H84: 0 | I84: 0 | J84: 0 | K84: 0 | L84: 0 | M84: 0 | N84: 0 | O84: 0 | P84: 0 | Q84: 0 | R84: 0 | S84: 0 | T84: 16048 | U84: 6 | V84: 9546 | W84: 0 | X84: 8350 | Y84: 0 | Z84: 0 | AA84: 0 | AB84: 411 | AC84: 0 | AD84: 834 | AE84: 35195

Sheet CONSOLIDADO PM
A1: PROFESIONALES MEDICOS ESPECIALISTAS | E1: PROGRAMACIÓN 2022 | F1: CUMPLIMIENTO 2022 | G1: INDICADOR 2.2
E2: TOTAL PROGRAMADO | F2: TOTAL PRODUCIDO
E3: SERVICIO DE SALUD | F3: SERVICIO DE SALUD
A4: SUMA HOJA PROFESIONAL MÉDICO + SUMA HOJA PROFESIONAL MÉDICO TELEMEDICINA | E4: =+'PM PRESENCIAL'!L64+'PM TELEMEDICINA'!R84 -> 0 | F4: =+'PM PRESENCIAL'!T64+'PM TELEMEDICINA'!AE84 -> 404,267 | G4: %

Sheet PNM
F1: PROGRAMACIÓN 2022 | N1: CUMPLIMIENTO 2022
A2: PROFESIONALES NO MEDICOS | F2: HOSPITAL LA SERENA | G2: HOSPITAL COQUIMBO | H2: HOSPITAL OVALLE | I2: HOSPITAL ILLAPEL | J2: HOSPITAL LOS VILOS | K2: COSAM TIERRAS BLANCAS | L2: PRAIS | M2: TOTAL PROGRAMADO | N2: HOSPITAL LA SERENA | O2: HOSPITAL COQUIMBO | P2: HOSPITAL OVALLE | Q2: HOSPITAL ILLAPEL | R2: HOSPITAL LOS VILOS | S2: COSAM TIERRAS BLANCAS | T2: PRAIS | U2: TOTAL PRODUCIDO
A3: REM | B3: CELDA | D3: ACTIVIDAD | E3: PROFESIONAL | F3: 105100 | G3: 105101 | H3: 105102 | I3: 105103 | J3: 105108 | K3: 105600 | L3: 105011 | M3: SERVICIO DE SALUD | N3: 105100 | O3: 105101 | P3: 105102 | Q3: 105103 | R3: 105108 | S3: 105600 | T3: 105011 | U3: SERVICIO DE SALUD
A4: A-06 SECCION A 1 | B4: C | C4: 14 | D4: CONTROLES ATENCION ESPECIALIDADES | E4: PSICÓLOGO/A | N4: 1,127 | O4: 151 | P4: 626 | Q4: 0 | R4: 2033 | S4: 111 | T4: 104 | U4: =SUM(N4:T4) -> 4,152
A5: A-06 SECCION A 1 | B5: C | C5: 15 | D5: CONTROLES ATENCION ESPECIALIDADES | E5: ENFERMERA /O | N5: 1,490 | O5: 1,107 | P5: 3535 | Q5: 925 | R5: 0 | S5: 451 | T5: 0 | U5: =SUM(N5:T5) -> 7,508
A6: A-06 SECCION A 1 | B6: C | C6: 16 | D6: CONTROLES ATENCION ESPECIALIDADES | E6: MATRONA /ÓN | N6: 0 | O6: 0 | P6: 0 | Q6: 0 | R6: 0 | S6: 0 | T6: 0 | U6: 0
A7: A-06 SECCION A 1 | B7: C | C7: 17 | D7: CONTROLES ATENCION ESPECIALIDADES | E7: ASISTENTE SOCIAL | N7: 1,513 | O7: 1,785 | P7: 1175 | Q7: 2935 | R7: 277 | S7: 502 | T7: 17 | U7: 8,204
A8: A-06 SECCION A 1 | B8: C | C8: 18 | D8: CONTROLES ATENCION ESPECIALIDADES | E8: OTROS PROFESIONALES | N8: 441 | O8: 165 | P8: 543 | Q8: 3554 | R8: 0 | S8: 435 | T8: 0 | U8: 5,138
A9: A-06 SECCION A 1 | B9: C | C9: 19 | D9: CONTROLES ATENCION ESPECIALIDADES | E9: TERAPEUTA OCUPACIONAL | N9: 1,421 | O9: 1,201 | P9: 2502 | Q9: 2193 | R9: 400 | S9: 987 | T9: 0 | U9: 8,704
A10: A-06 SECCION A 1 | B10: C | C10: 26 | D10: PSICOTERAPIA INDIVIDUAL | E10: PSICÓLOGO/A | N10: 4,365 | O10: 2,780 | P10: 3683 | Q10: 3590 | R10: 0 | S10: 1288 | T10: 1035 | U10: 16,741
A11: A-28 SECCION B.2 | B11: B | C11: 203 | D11: EVALUACIÓN INICIAL | E11: KINESIÓLOGO | N11: 10,186 | O11: 11,125 | P11: 2271 | Q11: 1184 | R11: 56 | S11: 0 | T11: 0 | U11: 24,822
A12: A-28 SECCION B.2 | B12: B | C12: 204 | D12: EVALUACIÓN INICIAL | E12: TERAPEUTA OCUPACIONAL | N12: 1,798 | O12: 1,396 | P12: 164 | Q12: 154 | R12: 0 | S12: 0 | T12: 0 | U12: 3,512
A13: A-28 SECCION B.2 | B13: B | C13: 205 | D13: EVALUACIÓN INICIAL | E13: FONOAUDIÓLOGO | N13: 2,482 | O13: 1,950 | P13: 445 | Q13: 179 | R13: 127 | S13: 0 | T13: 0 | U13: 5,183
A14: A-28 SECCION B.2 | B14: B | C14: 206 | D14: EVALUACIÓN INICIAL | E14: PSICÓLOGO/A | N14: 0 | O14: 0 | P14: 0 | Q14: 0 | R14: 0 | S14: 0 | T14: 0 | U14: 0
A15: A-28 SECCION B.2 | B15: B | C15: 207 | D15: EVALUACIÓN INICIAL | E15: ASISTENTE SOCIAL | N15: 0 | O15: 0 | P15: 0 | Q15: 0 | R15: 0 | S15: 0 | T15: 0 | U15: 0
A16: A-28 SECCION B.3 | B16: B | C16: 212 | D16: EVALUACIÓN INTERMEDIA | E16: KINESIÓLOGO | N16: 9,323 | O16: 1,740 | P16: 1657 | Q16: 325 | R16: 59 | S16: 0 | T16: 0 | U16: 13,104
A17: A-28 SECCION B.3 | B17: B | C17: 213 | D17: EVALUACIÓN INTERMEDIA | E17: TERAPEUTA OCUPACIONAL | N17: 140 | O17: 299 | P17: 12 | Q17: 0 | R17: 0 | S17: 0 | T17: 0 | U17: 451
A18: A-28 SECCION B.3 | B18: B | C18: 214 | D18: EVALUACIÓN INTERMEDIA | E18: FONOAUDIÓLOGO | N18: 1,550 | O18: 84 | P18: 2065 | Q18: 0 | R18: 87 | S18: 0 | T18: 0 | U18: =SUM(N18:T18) -> 3,786
A19: A-28 SECCION B.3 | B19: B | C19: 215 | D19: EVALUACIÓN INTERMEDIA | E19: PSICÓLOGO/A | N19: 0 | O19: 0 | P19: 0 | Q19: 0 | R19: 0 | S19: 0 | T19: 0 | U19: 0
A20: A-28 SECCION B.4 | B20: B | C20: 220 | D20: SESIONES DE REHABILITACIÓN | E20: KINESIÓLOGO | N20: 170,988 | O20: 90,040 | P20: 88722 | Q20: 14061 | R20: 2768 | S20: 0 | T20: 0 | U20: 366,579
A21: A-28 SECCION B.4 | B21: B | C21: 221 | D21: SESIONES DE REHABILITACIÓN | E21: TERAPEUTA OCUPACIONAL | N21: 13,229 | O21: 18,121 | P21: 924 | Q21: 787 | R21: 0 | S21: 0 | T21: 0 | U21: 33,061
A22: A-28 SECCION B.4 | B22: B | C22: 222 | D22: SESIONES DE REHABILITACIÓN | E22: FONOAUDIÓLOGO | N22: 10,220 | O22: 15,519 | P22: 5147 | Q22: 684 | R22: 525 | S22: 0 | T22: 0 | U22: 32,095
A23: A-28 SECCION B.4 | B23: B | C23: 223 | D23: SESIONES DE REHABILITACIÓN | E23: PSICÓLOGO/A | N23: 799 | O23: 0 | P23: 0 | Q23: 0 | R23: 0 | S23: 0 | T23: 0 | U23: 799
A24: A-07 SECCION C | B24: C | C24: 94 | D24: CONSULTAS Y CONTROLES POR OTROS PROFESIONALES EN ESPECIALIDAD (NIVEL SECUNDARIO) | E24: ENFERMERA /O | N24: 17,082 | O24: 24,016 | P24: 19022 | Q24: 4079 | R24: 0 | S24: 0 | T24: 0 | U24: 64,199
A25: A-07 SECCION C | B25: C | C25: 95+96+97+98 | D25: CONSULTAS Y CONTROLES POR OTROS PROFESIONALES EN ESPECIALIDAD (NIVEL SECUNDARIO) | E25: MATRONA /ÓN | N25: 4,953 | O25: 2,518 | P25: 7628 | Q25: 802 | R25: 0 | S25: 0 | T25: 0 | U25: 15,901
A26: A-07 SECCION C | B26: C | C26: 99 | D26: CONSULTAS Y CONTROLES POR OTROS PROFESIONALES EN ESPECIALIDAD (NIVEL SECUNDARIO) | E26: NUTRICIONISTA | N26: 3,030 | O26: 1,917 | P26: 4155 | Q26: 299 | R26: 0 | S26: 0 | T26: 0 | U26: 9,401
A27: A-07 SECCION C | B27: C | C27: 100 | D27: CONSULTAS Y CONTROLES POR OTROS PROFESIONALES EN ESPECIALIDAD (NIVEL SECUNDARIO) | E27: PSICÓLOGO (EXCLUYE SM) | N27: 1,756 | O27: 2,723 | P27: 1838 | Q27: 0 | R27: 0 | S27: 0 | T27: 133 | U27: 6,450
A28: A-07 SECCION C | B28: C | C28: 101 | D28: CONSULTAS Y CONTROLES POR OTROS PROFESIONALES EN ESPECIALIDAD (NIVEL SECUNDARIO) | E28: FONOAUDIÓLOGO | N28: 1,034 | O28: 3,537 | P28: 626 | Q28: 0 | R28: 0 | S28: 0 | T28: 0 | U28: 5,197
A29: A-07 SECCION C | B29: C | C29: 102 | D29: CONSULTAS Y CONTROLES POR OTROS PROFESIONALES EN ESPECIALIDAD (NIVEL SECUNDARIO) | E29: TECNÓLOGO MÉDICO | N29: 5,896 | O29: 0 | P29: 11102 | Q29: 4068 | R29: 0 | S29: 0 | T29: 0 | U29: 21,066
A30: A-07 SECCION C | B30: C | C30: 103 | D30: CONSULTAS Y CONTROLES POR OTROS PROFESIONALES EN ESPECIALIDAD (NIVEL SECUNDARIO) | E30: ASISTENTE SOCIAL | N30: 121 | O30: 1,012 | P30: 3490 | Q30: 392 | R30: 0 | S30: 0 | T30: 244 | U30: 5,259
A31: A -32 SECCIÓN C3 | B31: C | C31: 70 | D31: CONSULTAS Y CONTROLES POR OTROS PROFESIONALES EN ESPECIALIDAD (NIVEL SECUNDARIO) | E31: ENFERMERA | N31: 5,193 | O31: 1,349 | P31: 7725 | Q31: 0 | R31: 0 | S31: 54 | T31: 0 | U31: 14,321
A32: A -32 SECCIÓN C3 | B32: C | C32: 71+72+73 | D32: CONSULTAS Y CONTROLES POR OTROS PROFESIONALES EN ESPECIALIDAD (NIVEL SECUNDARIO) | E32: MATRONA | N32: 431 | O32: 406 | P32: 246 | Q32: 0 | R32: 0 | S32: 0 | T32: 0 | U32: 1,083
A33: A -32 SECCIÓN C3 | B33: C | C33: 74 | D33: CONSULTAS Y CONTROLES POR OTROS PROFESIONALES EN ESPECIALIDAD (NIVEL SECUNDARIO) | E33: NUTRICIONISTA | N33: 72 | O33: 687 | P33: 0 | Q33: 0 | R33: 0 | S33: 0 | T33: 1 | U33: 760
A34: A -32 SECCIÓN C3 | B34: C | C34: 75 | D34: CONSULTAS Y CONTROLES POR OTROS PROFESIONALES EN ESPECIALIDAD (NIVEL SECUNDARIO) | E34: PSICÓLOGO (EXCLUYE SM) | N34: 196 | O34: 89 | P34: 177 | Q34: 0 | R34: 0 | S34: 0 | T34: 34 | U34: 496
A35: A -32 SECCIÓN C3 | B35: C | C35: 76 | D35: CONSULTAS Y CONTROLES POR OTROS PROFESIONALES EN ESPECIALIDAD (NIVEL SECUNDARIO) | E35: FONOAUDIÓLOGO | N35: 65 | O35: 105 | P35: 0 | Q35: 0 | R35: 0 | S35: 0 | T35: 0 | U35: =SUM(N35:T35) -> 170
A36: A -32 SECCIÓN C3 | B36: C | C36: 77 | D36: CONSULTAS Y CONTROLES POR OTROS PROFESIONALES EN ESPECIALIDAD (NIVEL SECUNDARIO) | E36: TECNÓLOGO MÉDICO | N36: 28 | O36: 0 | P36: 501 | Q36: 0 | R36: 0 | S36: 0 | T36: 0 | U36: 529
A37: A -32 SECCIÓN C3 | B37: C | C37: 78 | D37: CONSULTAS Y CONTROLES POR OTROS PROFESIONALES EN ESPECIALIDAD (NIVEL SECUNDARIO) | E37: ASISTENTE SOCIAL | N37: 142 | O37: 100 | P37: 0 | Q37: 0 | R37: 0 | S37: 349 | T37: 86 | U37: 677
A38: PROGRAMACION | B38: N/A | C38: N/A | E38: TOTAL PROGRAMADO CONTACTO TELEFONICO | U38: 0
A39: PROGRAMACION | E39: TOTAL | N39: =SUM(N4:N38) -> 271,071 | O39: =SUM(O4:O38) -> 185,922 | P39: 169,981 | Q39: 40,211 | R39: 6,332 | S39: 4,177 | T39: =SUM(T4:T38) -> 1,654 | U39: =SUM(U4:U38) -> 679,348

Sheet Anexo RUTA REM
A1: RUTA REM PRODUCCION COMGES 2.2 AÑO 2022 | E1: RUTA REM PRODUCCION COMGES 2.2 AÑO 2022
A2: PROGRAMACIÓN MÉDICA | E2: PROGRAMACIÓN NO MÉDICA
A3: REM | B3: SECCIÓN | C3: SUMATORIA DE CELDAS | E3: REM | F3: SECCIÓN | G3: SUMATORIA DE CELDAS
A4: A-07 | B4: A | C4: B11 A B70 | E4: A-06 | F4: A1 | G4: C14 + C15 + C16 + C17 + C18 + C19 + C26
A5: A-28 | B5: D2 | C5: C345 | E5: A-07 | F5: C | G5: C94 a C103
A6: A-28 | B6: D2 | C6: C349 | E6: A-28 | F6: B2 | G6: B203 a B207
A7: A-28 | B7: D2 | C7: C353 | E7: A-28 | F7: B3 | G7: B212 a B215
A8: A-30 | B8: A | C8: J18 a J77 | E8: A-28 | F8: B4 | G8: B220 + B223
A9: A-30 | B9: A | C9: K18 a K77 | E9: A-32 | F9: C3 | G9: C70 a C78
A10: A-30 | B10: A | C10: L18 a L77
A11: A-30 | B11: A | C11: M18 A M77
A12: A-32 | B12: C1 | C12: B30 A B44

Sheet Hoja1 (hidden)
A1: Mes | B1: IdServicio | C1: Ano | D1: IdEstablecimiento | E1: CodigoPrestacion | F1: fechaIngreso | G1: Col01 | H1: Col02 | I1: Col03 | J1: Col04 | K1: Col05 | L1: Col06 | M1: Col07 | N1: Col08 | O1: Col09 | P1: Col10 | Q1: Col11 | R1: Col12 | S1: Col13 | T1: Col14 | U1: Col15 | V1: Col16 | W1: Col17 | X1: Col18 | Y1: Col19 | Z1: Col20 | AA1: Col21 | AB1: Col22 | AC1: Col23 | AD1: Col24 | AE1: Col25 | AF1: Col26 | AG1: Col27 | AH1: Col28 | AI1: Col29 | AJ1: Col30 | AK1: Col31 | AL1: Col32 | AM1: Col33 | AN1: Col34 | AO1: Col35 | AP1: Col36 | AQ1: Col37 | AR1: Col38 | AS1: Col39 | AT1: Col40 | AU1: Col41 | AV1: col42 | AW1: col43 | AX1: col44 | AY1: col45 | AZ1: col46 | BA1: col47 | BB1: col48 | BC1: col49 | BD1: col50
A2: 1 | B2: 5 | C2: 2022 | D2: 105100 | E2: 04050140 | F2: 2022-05-20T15:07:47 | G2: 91 | H2: 60 | I2: 31
A3: 1 | B3: 5 | C3: 2022 | D3: 105100 | E3: 04050150 | F3: 2022-05-20T15:07:47 | G3: 36 | H3: 34 | I3: 2
A4: 1 | B4: 5 | C4: 2022 | D4: 105100 | E4: 04050160 | F4: 2022-05-20T15:07:47 | G4: 10 | H4: 8 | I4: 2
A5: 1 | B5: 5 | C5: 2022 | D5: 105100 | E5: 04050170 | F5: 2022-05-20T15:07:47 | G5: 53 | H5: 35 | I5: 18
A6: 1 | B6: 5 | C6: 2022 | D6: 105100 | E6: 04050180 | F6: 2022-05-20T15:07:47 | G6: 60 | H6: 23 | I6: 37
A7: 1 | B7: 5 | C7: 2022 | D7: 105100 | E7: 04040409 | F7: 2022-05-20T15:07:47 | G7: 3 | I7: 3
A8: 1 | B8: 5 | C8: 2022 | D8: 105100 | E8: 04040412 | F8: 2022-05-20T15:07:47 | G8: 9464 | H8: 1375 | I8: 10483 | J8: 356 | K8: 42206 | L8: 1749 | M8: 42619 | N8: 1336 | O8: 9464
A9: 1 | B9: 5 | C9: 2022 | D9: 105100 | E9: 04040413 | F9: 2022-05-20T15:07:47 | G9: 9505 | H9: 352 | I9: 9852 | J9: 5 | K9: 9693 | L9: 430 | M9: 10115 | N9: 8 | O9: 9505
A10: 2 | B10: 5 | C10: 2022 | D10: 105012 | E10: 09600311 | F10: 2022-03-17T11:56:48 | G10: 1
A11: 2 | B11: 5 | C11: 2022 | D11: 105012 | E11: 09600312 | F11: 2022-03-17T11:56:48 | G11: 1
A12: 2 | B12: 5 | C12: 2022 | D12: 105012 | E12: 09204931 | F12: 2022-03-17T11:56:48 | G12: 1
A13: 2 | B13: 5 | C13: 2022 | D13: 105012 | E13: 09204934 | F13: 2022-03-17T11:56:48 | G13: 1
A14: 2 | B14: 5 | C14: 2022 | D14: 105012 | E14: 09400104 | F14: 2022-03-17T11:56:48 | H14: 119 | I14: 96 | J14: 77
A15: 2 | B15: 5 | C15: 2022 | D15: 105012 | E15: 09400101 | F15: 2022-03-17T11:56:48 | I15: 96 | J15: 77
A16: 1 | B16: 5 | C16: 2022 | D16: 105100 | E16: 04050210 | F16: 2022-05-20T15:07:47 | G16: 845 | H16: 129 | I16: 950 | J16: 24 | K16: 845 | L16: 129 | M16: 950 | N16: 24 | O16: 845
A17: 1 | B17: 5 | C17: 2022 | D17: 105100 | E17: 04040420 | F17: 2022-05-20T15:07:47 | G17: 48 | H17: 29 | I17: 19 | J17: 29 | K17: 19 | T17: 0 | U17: 0
A18: 1 | B18: 5 | C18: 2022 | D18: 105101 | E18: 03500356 | F18: 2022-10-21T14:57:35 | G18: 21 | H18: 10 | I18: 11 | J18: 1 | K18: 2 | L18: 3 | M18: 0 | N18: 3 | O18: 4 | P18: 1 | Q18: 1 | R18: 2 | S18: 4 | T18: 0 | U18: 0
A19: 1 | B19: 5 | C19: 2022 | D19: 105101 | E19: 03500357 | F19: 2022-10-21T14:57:35 | G19: 52 | H19: 34 | I19: 18 | J19: 10 | K19: 2 | L19: 6 | M19: 9 | N19: 11 | O19: 3 | P19: 3 | Q19: 0 | R19: 4 | S19: 4 | T19: 0 | U19: 0
A20: 1 | B20: 5 | C20: 2022 | D20: 105101 | E20: 03500358 | F20: 2022-10-21T14:57:35 | G20: 6 | H20: 5 | I20: 1 | J20: 0 | K20: 1 | L20: 5 | M20: 0 | N20: 0 | O20: 0 | P20: 0 | Q20: 0 | R20: 0 | S20: 0 | T20: 0 | U20: 0
A21: 1 | B21: 5 | C21: 2022 | D21: 105101 | E21: 04050140 | F21: 2022-10-21T14:57:35 | G21: 4248 | H21: 1693 | I21: 2555 | J21: 0 | K21: 0
A22: 1 | B22: 5 | C22: 2022 | D22: 105101 | E22: 04050150 | F22: 2022-10-21T14:57:35 | G22: 44 | H22: 44 | I22: 0 | J22: 0 | K22: 0
A23: 1 | B23: 5 | C23: 2022 | D23: 105101 | E23: 04050180 | F23: 2022-10-21T14:57:35 | G23: 456 | H23: 3 | I23: 453 | J23: 0 | K23: 0
A24: 1 | B24: 5 | C24: 2022 | D24: 105101 | E24: 04040409 | F24: 2022-10-21T14:57:35 | G24: 4 | H24: 2 | I24: 2 | J24: 0 | K24: 0
A25: 1 | B25: 5 | C25: 2022 | D25: 105101 | E25: 04040412 | F25: 2022-10-21T14:57:35 | G25: 8944 | H25: 284 | I25: 8944 | J25: 0 | K25: 29108 | L25: 310 | M25: 29108 | N25: 0 | O25: 8660 | P25: 0 | Q25: 0 | R25: 0 | S25: 0
A26: 2 | B26: 5 | C26: 2022 | D26: 105101 | E26: 03500356 | F26: 2022-10-21T14:57:38 | G26: 16 | H26: 9 | I26: 7 | J26: 3 | K26: 1 | L26: 2 | M26: 1 | N26: 3 | O26: 4 | P26: 1 | Q26: 1 | R26: 0 | S26: 0 | T26: 0 | U26: 0
A27: 2 | B27: 5 | C27: 2022 | D27: 105101 | E27: 03500357 | F27: 2022-10-21T14:57:38 | G27: 36 | H27: 22 | I27: 14 | J27: 5 | K27: 9 | L27: 5 | M27: 1 | N27: 8 | O27: 2 | P27: 2 | Q27: 1 | R27: 2 | S27: 1 | T27: 0 | U27: 0
A28: 2 | B28: 5 | C28: 2022 | D28: 105101 | E28: 03500358 | F28: 2022-10-21T14:57:38 | G28: 9 | H28: 5 | I28: 4 | J28: 1 | K28: 0 | L28: 2 | M28: 1 | N28: 1 | O28: 1 | P28: 1 | Q28: 1 | R28: 0 | S28: 1 | T28: 0 | U28: 0
A29: 2 | B29: 5 | C29: 2022 | D29: 105101 | E29: 04050140 | F29: 2022-10-21T14:57:38 | G29: 7665 | H29: 4836 | I29: 2829 | J29: 0 | K29: 0
A30: 2 | B30: 5 | C30: 2022 | D30: 105101 | E30: 04050150 | F30: 2022-10-21T14:57:38 | G30: 30 | H30: 30 | I30: 0 | J30: 0 | K30: 0
A31: 2 | B31: 5 | C31: 2022 | D31: 105101 | E31: 04050160 | F31: 2022-10-21T14:57:38 | G31: 1 | H31: 0 | I31: 1 | J31: 0 | K31: 0
A32: 2 | B32: 5 | C32: 2022 | D32: 105101 | E32: 04050170 | F32: 2022-10-21T14:57:38 | G32: 2 | H32: 0 | I32: 2 | J32: 0 | K32: 0
A33: 2 | B33: 5 | C33: 2022 | D33: 105101 | E33: 04050180 | F33: 2022-10-21T14:57:38 | G33: 411 | H33: 3 | I33: 408 | J33: 0 | K33: 0
A34: 3 | B34: 5 | C34: 2022 | D34: 105101 | E34: 03500356 | F34: 2022-10-21T14:57:42 | G34: 10 | H34: 5 | I34: 5 | J34: 0 | K34: 1 | L34: 1 | M34: 0 | N34: 1 | O34: 2 | P34: 1 | Q34: 1 | R34: 2 | S34: 1 | T34: 0 | U34: 0
A35: 3 | B35: 5 | C35: 2022 | D35: 105101 | E35: 03500357 | F35: 2022-10-21T14:57:42 | G35: 64 | H35: 37 | I35: 27 | J35: 15 | K35: 6 | L35: 5 | M35: 8 | N35: 10 | O35: 7 | P35: 3 | Q35: 4 | R35: 3 | S35: 1 | T35: 1 | U35: 1
A36: 3 | B36: 5 | C36: 2022 | D36: 105101 | E36: 03500358 | F36: 2022-10-21T14:57:42 | G36: 11 | H36: 8 | I36: 3 | J36: 1 | K36: 0 | L36: 1 | M36: 1 | N36: 3 | O36: 1 | P36: 1 | Q36: 1 | R36: 1 | S36: 0 | T36: 1 | U36: 0
A37: 3 | B37: 5 | C37: 2022 | D37: 105101 | E37: 04050140 | F37: 2022-10-21T14:57:42 | G37: 4093 | H37: 2095 | I37: 1998 | J37: 0 | K37: 0
A38: 3 | B38: 5 | C38: 2022 | D38: 105101 | E38: 04050150 | F38: 2022-10-21T14:57:42 | G38: 62 | H38: 62 | I38: 0 | J38: 0 | K38: 0
A39: 3 | B39: 5 | C39: 2022 | D39: 105101 | E39: 04050170 | F39: 2022-10-21T14:57:42 | G39: 2 | H39: 2 | I39: 0 | J39: 0 | K39: 0
A40: 3 | B40: 5 | C40: 2022 | D40: 105101 | E40: 04050180 | F40: 2022-10-21T14:57:42 | G40: 394 | H40: 0 | I40: 394 | J40: 0 | K40: 0
A41: 3 | B41: 5 | C41: 2022 | D41: 105101 | E41: 04040409 | F41: 2022-10-21T14:57:42 | G41: 7 | H41: 2 | I41: 5 | J41: 0 | K41: 0
A42: 6 | B42: 5 | C42: 2022 | D42: 105101 | E42: 03500356 | F42: 2022-10-21T15:01:21 | G42: 11 | H42: 5 | I42: 6 | J42: 0 | K42: 0 | L42: 4 | M42: 0 | N42: 0 | O42: 2 | P42: 0 | Q42: 3 | R42: 1 | S42: 1 | T42: 0 | U42: 0
A43: 6 | B43: 5 | C43: 2022 | D43: 105101 | E43: 03500357 | F43: 2022-10-21T15:01:21 | G43: 85 | H43: 43 | I43: 42 | J43: 17 | K43: 10 | L43: 11 | M43: 8 | N43: 7 | O43: 11 | P43: 4 | Q43: 7 | R43: 2 | S43: 4 | T43: 2 | U43: 2
A44: 6 | B44: 5 | C44: 2022 | D44: 105101 | E44: 03500358 | F44: 2022-10-21T15:01:21 | G44: 29 | H44: 11 | I44: 18 | J44: 2 | K44: 0 | L44: 1 | M44: 2 | N44: 4 | O44: 2 | P44: 2 | Q44: 3 | R44: 2 | S44: 8 | T44: 0 | U44: 3
A45: 6 | B45: 5 | C45: 2022 | D45: 105101 | E45: 04050140 | F45: 2022-10-21T15:01:21 | G45: 3829 | H45: 2156 | I45: 1673
A46: 6 | B46: 5 | C46: 2022 | D46: 105101 | E46: 04050180 | F46: 2022-10-21T15:01:21 | G46: 312 | H46: 70 | I46: 242
A47: 6 | B47: 5 | C47: 2022 | D47: 105101 | E47: 04040412 | F47: 2022-10-21T15:01:21 | G47: 11748 | H47: 315 | I47: 11748 | K47: 35731 | L47: 333 | M47: 35731 | O47: 11748
A48: 6 | B48: 5 | C48: 2022 | D48: 105101 | E48: 04040413 | F48: 2022-10-21T15:01:21 | G48: 3391 | H48: 62 | I48: 3391 | K48: 7180 | L48: 62 | M48: 7180 | O48: 3391
A49: 6 | B49: 5 | C49: 2022 | D49: 105101 | E49: 04050210 | F49: 2022-10-21T15:01:21 | G49: 1209 | I49: 1209 | K49: 1209 | M49: 1209 | O49: 1209
A50: 7 | B50: 5 | C50: 2022 | D50: 105101 | E50: 03500356 | F50: 2022-10-21T15:01:27 | G50: 30 | H50: 13 | I50: 17 | J50: 4 | K50: 2 | L50: 4 | M50: 5 | N50: 2 | O50: 4 | P50: 3 | Q50: 2 | R50: 0 | S50: 4 | T50: 0 | U50: 0
A51: 7 | B51: 5 | C51: 2022 | D51: 105101 | E51: 03500357 | F51: 2022-10-21T15:01:27 | G51: 99 | H51: 58 | I51: 41 | J51: 14 | K51: 10 | L51: 17 | M51: 9 | N51: 10 | O51: 9 | P51: 9 | Q51: 8 | R51: 7 | S51: 3 | T51: 1 | U51: 2
A52: 7 | B52: 5 | C52: 2022 | D52: 105101 | E52: 03500358 | F52: 2022-10-21T15:01:27 | G52: 20 | H52: 4 | I52: 16 | J52: 1 | K52: 2 | L52: 1 | M52: 1 | N52: 1 | O52: 3 | P52: 0 | Q52: 4 | R52: 1 | S52: 2 | T52: 0 | U52: 4
A53: 7 | B53: 5 | C53: 2022 | D53: 105101 | E53: 04050140 | F53: 2022-10-21T15:01:27 | G53: 3417 | H53: 2293 | I53: 1124 | J53: 0 | K53: 0
A54: 7 | B54: 5 | C54: 2022 | D54: 105101 | E54: 04050150 | F54: 2022-10-21T15:01:27 | G54: 2 | H54: 2 | I54: 0 | J54: 0 | K54: 0
A55: 7 | B55: 5 | C55: 2022 | D55: 105101 | E55: 04050170 | F55: 2022-10-21T15:01:27 | G55: 2 | H55: 2
A56: 7 | B56: 5 | C56: 2022 | D56: 105101 | E56: 04050180 | F56: 2022-10-21T15:01:27 | G56: 192 | H56: 58 | I56: 134
A57: 7 | B57: 5 | C57: 2022 | D57: 105101 | E57: 04040409 | F57: 2022-10-21T15:01:27 | G57: 7 | H57: 6 | I57: 1
A58: 8 | B58: 5 | C58: 2022 | D58: 105101 | E58: 03500356 | F58: 2022-10-21T16:10:14 | G58: 22 | H58: 13 | I58: 9 | J58: 0 | K58: 0 | L58: 1 | M58: 2 | N58: 5 | O58: 3 | P58: 5 | Q58: 2 | R58: 2 | S58: 0 | T58: 0 | U58: 2
A59: 8 | B59: 5 | C59: 2022 | D59: 105101 | E59: 03500357 | F59: 2022-10-21T16:10:14 | G59: 43 | H59: 18 | I59: 25 | J59: 6 | K59: 2 | L59: 4 | M59: 10 | N59: 4 | O59: 7 | P59: 3 | Q59: 2 | R59: 0 | S59: 3 | T59: 1 | U59: 1
A60: 8 | B60: 5 | C60: 2022 | D60: 105101 | E60: 03500358 | F60: 2022-10-21T16:10:14 | G60: 29 | H60: 8 | I60: 21 | J60: 1 | K60: 1 | L60: 0 | M60: 2 | N60: 2 | O60: 6 | P60: 0 | Q60: 4 | R60: 3 | S60: 5 | T60: 2 | U60: 3
A61: 8 | B61: 5 | C61: 2022 | D61: 105101 | E61: 04050140 | F61: 2022-10-21T16:10:14 | G61: 3969 | H61: 2654 | I61: 1315
A62: 8 | B62: 5 | C62: 2022 | D62: 105101 | E62: 04050150 | F62: 2022-10-21T16:10:14 | G62: 14 | H62: 14
A63: 8 | B63: 5 | C63: 2022 | D63: 105101 | E63: 04050170 | F63: 2022-10-21T16:10:14 | G63: 1 | H63: 1
A64: 8 | B64: 5 | C64: 2022 | D64: 105101 | E64: 04050180 | F64: 2022-10-21T16:10:14 | G64: 246 | H64: 82 | I64: 164
A65: 8 | B65: 5 | C65: 2022 | D65: 105101 | E65: 04040409 | F65: 2022-10-21T16:10:14 | G65: 5 | H65: 3 | I65: 2
A66: 1 | B66: 5 | C66: 2022 | D66: 105103 | E66: 03051700 | F66: 2022-10-21T16:09:58 | G66: 1 | H66: 0 | I66: 1 | AA66: 1
A67: 1 | B67: 5 | C67: 2022 | D67: 105103 | E67: 03052600 | F67: 2022-10-21T16:09:58 | G67: 1 | H67: 1 | I67: 0 | X67: 1
A68: 1 | B68: 5 | C68: 2022 | D68: 105103 | E68: 03053300 | F68: 2022-10-21T16:09:58 | G68: 1 | H68: 1 | I68: 0 | X68: 1
A69: 1 | B69: 5 | C69: 2022 | D69: 105103 | E69: 03500356 | F69: 2022-10-21T16:09:58 | G69: 5 | H69: 4 | I69: 1 | J69: 2 | L69: 2 | Q69: 1
A70: 1 | B70: 5 | C70: 2022 | D70: 105103 | E70: 03500357 | F70: 2022-10-21T16:09:58 | G70: 48 | H70: 19 | I70: 29 | J70: 7 | K70: 10 | L70: 5 | M70: 4 | N70: 3 | O70: 2 | P70: 1 | Q70: 5 | R70: 2 | S70: 5 | T70: 1 | U70: 3
A71: 1 | B71: 5 | C71: 2022 | D71: 105103 | E71: 03500358 | F71: 2022-10-21T16:09:58 | G71: 7 | H71: 6 | I71: 1 | L71: 2 | M71: 1 | N71: 2 | P71: 1 | R71: 1
A72: 1 | B72: 5 | C72: 2022 | D72: 105103 | E72: 04060270 | F72: 2022-10-21T16:09:58 | G72: 21 | H72: 0 | I72: 0 | J72: 0 | K72: 0 | L72: 0 | M72: 1 | N72: 4 | O72: 1 | P72: 1 | Q72: 2 | R72: 2 | S72: 1 | T72: 2 | U72: 1 | V72: 1 | W72: 0 | X72: 5 | Y72: 0 | Z72: 4
A73: 1 | B73: 5 | C73: 2022 | D73: 105103 | E73: 03020501 | F73: 2022-10-21T16:09:58 | G73: 48 | H73: 9 | I73: 39 | J73: 0 | K73: 0 | L73: 0 | M73: 0 | N73: 0 | O73: 0 | P73: 0 | Q73: 0 | R73: 0 | S73: 1 | T73: 0 | U73: 7 | V73: 1 | W73: 4 | X73: 2 | Y73: 7 | Z73: 2 | AA73: 3 | AB73: 1 | AC73: 6 | AD73: 1 | AE73: 4 | AF73: 0 | AG73: 4 | AH73: 0 | AI73: 3 | AJ73: 2 | AK73: 0 | AL73: 0 | AM73: 0 | AN73: 0 | AO73: 0 | AP73: 0 | AQ73: 0 | AR73: 0 | AS73: 0 | AT73: 48 | AU73: 0 | AV73: 0 | AW73: 0 | AX73: 0
A74: 3 | B74: 5 | C74: 2022 | D74: 105468 | E74: 01010203 | F74: 2022-05-20T15:37:07 | G74: 2 | M74: 1 | N74: 1 | Z74: 2 | AA74: 2 | AB74: 0
A75: 3 | B75: 5 | C75: 2022 | D75: 105468 | E75: 01110107 | F75: 2022-05-20T15:37:07 | G75: 1 | L75: 1 | Z75: 1 | AA75: 1 | AC75: 1 | AD75: 1 | AE75: 0 | AF75: 0
A76: 3 | B76: 5 | C76: 2022 | D76: 105468 | E76: 01010603 | F76: 2022-05-20T15:37:07 | G76: 10 | M76: 3 | N76: 1 | O76: 2 | P76: 2 | Q76: 1 | T76: 1 | Z76: 10 | AA76: 10
A77: 3 | B77: 5 | C77: 2022 | D77: 105468 | E77: 01010903 | F77: 2022-05-20T15:37:07 | G77: 8 | Q77: 3 | R77: 2 | S77: 2 | T77: 1 | Z77: 8 | AA77: 8
A78: 3 | B78: 5 | C78: 2022 | D78: 105468 | E78: 01010403 | F78: 2022-05-20T15:37:07 | G78: 10 | K78: 1 | L78: 1 | M78: 1 | N78: 3 | O78: 1 | P78: 1 | Q78: 2 | Z78: 10 | AA78: 10
A79: 3 | B79: 5 | C79: 2022 | D79: 105468 | E79: 02010201 | F79: 2022-05-20T15:37:07 | G79: 74 | H79: 37 | I79: 37 | J79: 1 | L79: 3 | N79: 1 | Q79: 5 | R79: 7 | S79: 1 | T79: 9 | U79: 5 | V79: 5 | W79: 8 | X79: 2 | AC79: 2 | AD79: 2 | AE79: 1 | AF79: 5 | AG79: 2 | AH79: 5 | AI79: 4 | AK79: 2 | AL79: 4 | AM79: 74 | AN79: 4 | AO79: 2 | AP79: 0
A80: 3 | B80: 5 | C80: 2022 | D80: 105468 | E80: 02010103 | F80: 2022-05-20T15:37:07 | G80: 1 | H80: 1 | J80: 1 | AM80: 1 | AN80: 1 | AP80: 0
A81: 3 | B81: 5 | C81: 2022 | D81: 105468 | E81: 03010502 | F81: 2022-05-20T15:37:07 | G81: 20 | H81: 9 | I81: 11 | X81: 1 | Z81: 1 | AA81: 1 | AC81: 1 | AD81: 3 | AE81: 1 | AF81: 1 | AG81: 1 | AH81: 1 | AI81: 4 | AJ81: 1 | AK81: 1 | AO81: 1 | AP81: 1 | AQ81: 1 | AR81: 20
A82: 3 | B82: 5 | C82: 2022 | D82: 105467 | E82: 01010203 | F82: 2022-05-20T15:39:13 | G82: 2 | M82: 1 | N82: 1 | Z82: 2 | AA82: 2 | AB82: 0
A83: 3 | B83: 5 | C83: 2022 | D83: 105467 | E83: 01110107 | F83: 2022-05-20T15:39:13 | G83: 1 | M83: 1 | Z83: 1 | AA83: 1 | AC83: 0 | AD83: 1 | AE83: 0 | AF83: 0
A84: 3 | B84: 5 | C84: 2022 | D84: 105467 | E84: 01010603 | F84: 2022-05-20T15:39:13 | G84: 20 | K84: 1 | N84: 3 | O84: 1 | P84: 3 | Q84: 2 | R84: 4 | S84: 2 | T84: 2 | U84: 2 | Z84: 20 | AA84: 20
A85: 3 | B85: 5 | C85: 2022 | D85: 105467 | E85: 01010403 | F85: 2022-05-20T15:39:13 | G85: 22 | K85: 4 | L85: 3 | M85: 5 | N85: 2 | O85: 2 | P85: 1 | Q85: 3 | R85: 2 | Z85: 22 | AA85: 22
A86: 3 | B86: 5 | C86: 2022 | D86: 105467 | E86: 02010101 | F86: 2022-05-20T15:39:13 | G86: 1 | I86: 1 | M86: 1 | AM86: 1 | AP86: 0
A87: 3 | B87: 5 | C87: 2022 | D87: 105467 | E87: 02010201 | F87: 2022-05-20T15:39:13 | G87: 22 | H87: 9 | I87: 13 | O87: 2 | P87: 2 | Q87: 2 | S87: 2 | T87: 5 | U87: 1 | V87: 3 | W87: 2 | AF87: 1 | AH87: 1 | AJ87: 1 | AM87: 22 | AN87: 1 | AP87: 0
A88: 3 | B88: 5 | C88: 2022 | D88: 105467 | E88: 02010103 | F88: 2022-05-20T15:39:13 | G88: 1 | H88: 1 | J88: 1 | AM88: 1 | AP88: 0
A89: 3 | B89: 5 | C89: 2022 | D89: 105467 | E89: 03010501 | F89: 2022-05-20T15:39:13 | G89: 35 | H89: 10 | I89: 25 | S89: 1 | U89: 1 | Z89: 2 | AC89: 2 | AD89: 1 | AE89: 1 | AG89: 5 | AH89: 1 | AI89: 3 | AJ89: 3 | AK89: 6 | AN89: 1 | AO89: 3 | AP89: 2 | AQ89: 3 | AR89: 35
A90: 3 | B90: 5 | C90: 2022 | D90: 105470 | E90: 03010504 | F90: 2022-05-20T15:40:05 | G90: 6 | H90: 1 | I90: 5 | AD90: 1 | AE90: 1 | AG90: 1 | AI90: 1 | AK90: 1 | AM90: 1 | AR90: 6
A91: 3 | B91: 5 | C91: 2022 | D91: 105470 | E91: 03030150 | F91: 2022-05-20T15:40:05 | G91: 1 | H91: 1 | I91: 0 | AL91: 1 | AR91: 1
A92: 3 | B92: 5 | C92: 2022 | D92: 105470 | E92: 03030102 | F92: 2022-05-20T15:40:05 | G92: 5 | H92: 3 | I92: 2
A93: 3 | B93: 5 | C93: 2022 | D93: 105470 | E93: 03030110 | F93: 2022-05-20T15:40:05 | G93: 4 | H93: 3 | I93: 1
A94: 3 | B94: 5 | C94: 2022 | D94: 105470 | E94: 03030330 | F94: 2022-05-20T15:40:05 | G94: 6 | H94: 4 | I94: 2 | R94: 1 | U94: 1 | AF94: 2 | AG94: 1 | AH94: 1
A95: 3 | B95: 5 | C95: 2022 | D95: 105470 | E95: 03030120 | F95: 2022-05-20T15:40:05 | G95: 3 | H95: 2 | I95: 1 | AB95: 2 | AK95: 1
A96: 3 | B96: 5 | C96: 2022 | D96: 105470 | E96: 02200030 | F96: 2022-05-20T15:40:05 | G96: 2 | H96: 2 | I96: 0 | R96: 1 | AB96: 1
A97: 3 | B97: 5 | C97: 2022 | D97: 105470 | E97: 03020501 | F97: 2022-05-20T15:40:05 | G97: 2 | H97: 0 | I97: 2 | AE97: 1 | AS97: 1 | AT97: 2 | AU97: 0 | AV97: 0 | AW97: 0 | AX97: 0
A98: 3 | B98: 5 | C98: 2022 | D98: 105470 | E98: 04050110 | F98: 2022-05-20T15:40:05 | G98: 6 | H98: 1 | I98: 5 | AF98: 1 | AG98: 1 | AI98: 1 | AK98: 1 | AM98: 1 | AO98: 1 | AT98: 6 | AU98: 0 | AV98: 0 | AW98: 0 | AX98: 0
A99: 3 | B99: 5 | C99: 2022 | D99: 105470 | E99: 03020908 | F99: 2022-05-20T15:40:05 | G99: 7 | H99: 5 | I99: 2 | L99: 1 | T99: 1 | W99: 1 | X99: 1 | AC99: 1 | AJ99: 1 | AL99: 1 | AT99: 7 | AU99: 0 | AV99: 0 | AW99: 0 | AX99: 0
A100: 3 | B100: 5 | C100: 2022 | D100: 105470 | E100: 03020806 | F100: 2022-05-20T15:40:05 | G100: 1 | H100: 1 | I100: 0 | AJ100: 1 | AT100: 1 | AU100: 0 | AV100: 0 | AW100: 0 | AX100: 0
A101: 3 | B101: 5 | C101: 2022 | D101: 105470 | E101: 04050140 | F101: 2022-05-20T15:40:05 | G101: 5 | H101: 5 | J101: 5
A102: 3 | B102: 5 | C102: 2022 | D102: 105470 | E102: 04040412 | F102: 2022-05-20T15:40:05 | G102: 45 | I102: 45 | K102: 111 | M102: 111 | O102: 45 | P102: 37 | Q102: 0 | R102: 103 | S102: 0
A103: 3 | B103: 5 | C103: 2022 | D103: 105470 | E103: 04040413 | F103: 2022-05-20T15:40:05 | G103: 4 | I103: 4 | K103: 7 | M103: 7 | O103: 4
A104: 3 | B104: 5 | C104: 2022 | D104: 105470 | E104: 04050210 | F104: 2022-05-20T15:40:05 | G104: 5 | I104: 5 | K104: 5 | M104: 5 | O104: 5
A105: 3 | B105: 5 | C105: 2022 | D105: 105470 | E105: 04040414 | F105: 2022-05-20T15:40:05 | G105: 23 | H105: 1 | J105: 1 | K105: 1 | L105: 1 | N105: 1 | O105: 1 | Q105: 3
A106: 3 | B106: 5 | C106: 2022 | D106: 105470 | E106: 04040418 | F106: 2022-05-20T15:40:05 | G106: 6 | H106: 1 | I106: 5 | AF106: 1 | AG106: 1 | AI106: 1 | AK106: 1 | AM106: 1 | AO106: 1 | AT106: 6 | AU106: 0
A107: 3 | B107: 5 | C107: 2022 | D107: 105470 | E107: 04040419 | F107: 2022-05-20T15:40:05 | G107: 1 | H107: 1 | I107: 0 | AN107: 1 | AT107: 1 | AU107: 0
A108: 3 | B108: 5 | C108: 2022 | D108: 105470 | E108: 05990003 | F108: 2022-05-20T15:40:05 | G108: 1 | L108: 1
A109: 3 | B109: 5 | C109: 2022 | D109: 105470 | E109: 05227400 | F109: 2022-05-20T15:40:05 | G109: 1 | H109: 0 | I109: 1 | S109: 1 | AR109: 0 | AS109: 0 | AT109: 0 | AU109: 0 | AV109: 0 | AW109: 0
A110: 3 | B110: 5 | C110: 2022 | D110: 105470 | E110: 05810441 | F110: 2022-05-20T15:40:05 | G110: 1 | H110: 0 | I110: 1 | S110: 1 | AR110: 0 | AS110: 0 | AT110: 0 | AU110: 0 | AV110: 0 | AW110: 0
A111: 3 | B111: 5 | C111: 2022 | D111: 105470 | E111: 05810445 | F111: 2022-05-20T15:40:05 | G111: 1 | H111: 0 | I111: 1 | S111: 1 | AR111: 0 | AS111: 0 | AT111: 0 | AU111: 0 | AV111: 0 | AW111: 0
A112: 3 | B112: 5 | C112: 2022 | D112: 105470 | E112: 06020208 | F112: 2022-05-20T15:40:05 | G112: 15 | H112: 5 | I112: 10 | M112: 1 | R112: 1 | X112: 2 | AC112: 4 | AD112: 1 | AE112: 2 | AH112: 1 | AK112: 2 | AQ112: 1 | AR112: 15 | AS112: 0 | AT112: 0 | AU112: 1 | AV112: 0
A113: 3 | B113: 5 | C113: 2022 | D113: 105470 | E113: 06020206 | F113: 2022-05-20T15:40:05 | G113: 4 | H113: 2 | I113: 2 | AC113: 1 | AD113: 1 | AH113: 1 | AK113: 1 | AR113: 4 | AS113: 0 | AT113: 0 | AU113: 0 | AV113: 0
A114: 3 | B114: 5 | C114: 2022 | D114: 105470 | E114: 06905400 | F114: 2022-05-20T15:40:05 | G114: 5 | H114: 1 | I114: 1
A115: 3 | B115: 5 | C115: 2022 | D115: 105470 | E115: 06905911 | F115: 2022-05-20T15:40:05 | G115: 2 | H115: 1 | I115: 1
A116: 3 | B116: 5 | C116: 2022 | D116: 105470 | E116: 07023203 | F116: 2022-05-20T15:40:05 | G116: 0 | AB116: 0 | AF116: 0 | AX116: 1
A117: 3 | B117: 5 | C117: 2022 | D117: 105470 | E117: 08210005 | F117: 2022-05-20T15:40:05 | G117: 11 | H117: 5 | I117: 6 | Q117: 1 | W117: 1 | AD117: 1 | AG117: 1 | AH117: 1 | AI117: 1 | AL117: 3 | AM117: 2 | AR117: 11 | AS117: 0
A118: 3 | B118: 5 | C118: 2022 | D118: 105470 | E118: 19120603 | F118: 2022-05-20T15:40:05 | G118: 6 | H118: 0 | I118: 6 | W118: 1 | AA118: 1 | AC118: 1 | AE118: 1 | AI118: 2 | AS118: 0 | AT118: 0 | AU118: 0 | AV118: 0 | AW118: 0 | AX118: 0
A119: 3 | B119: 5 | C119: 2022 | D119: 105470 | E119: 23030100 | F119: 2022-05-20T15:40:05 | G119: 1 | H119: 1 | I119: 0 | L119: 1
A120: 3 | B120: 5 | C120: 2022 | D120: 105470 | E120: 23080500 | F120: 2022-05-20T15:40:05 | G120: 1 | H120: 0 | I120: 1 | Y120: 1 | AP120: 1
A121: 3 | B121: 5 | C121: 2022 | D121: 105470 | E121: 23090530 | F121: 2022-05-20T15:40:05 | G121: 2 | H121: 1 | I121: 1 | L121: 1 | Y121: 1
A122: 3 | B122: 5 | C122: 2022 | D122: 105470 | E122: 26274500 | F122: 2022-05-20T15:40:05 | G122: 1 | H122: 1
A123: 3 | B123: 5 | C123: 2022 | D123: 105470 | E123: 28020500 | F123: 2022-05-20T15:40:05 | G123: 1 | H123: 0 | I123: 1 | AI123: 1 | AW123: 1
A124: 3 | B124: 5 | C124: 2022 | D124: 105470 | E124: 28020550 | F124: 2022-05-20T15:40:05 | G124: 1 | H124: 0 | I124: 1 | AI124: 1 | AW124: 1
A125: 3 | B125: 5 | C125: 2022 | D125: 105470 | E125: 28014800 | F125: 2022-05-20T15:40:05 | G125: 1 | AG125: 1 | AU125: 1
A126: 3 | B126: 5 | C126: 2022 | D126: 105470 | E126: 28022200 | F126: 2022-05-20T15:40:05 | G126: 1 | AG126: 1 | AU126: 1
A127: 3 | B127: 5 | C127: 2022 | D127: 105470 | E127: 28020660 | F127: 2022-05-20T15:40:05 | G127: 5 | I127: 5
A128: 3 | B128: 5 | C128: 2022 | D128: 105470 | E128: 28011500 | F128: 2022-05-20T15:40:05 | H128: 1
A129: 3 | B129: 5 | C129: 2022 | D129: 105470 | E129: 28011700 | F129: 2022-05-20T15:40:05 | H129: 5
A130: 3 | B130: 5 | C130: 2022 | D130: 105470 | E130: 28011600 | F130: 2022-05-20T15:40:05 | H130: 1
A131: 3 | B131: 5 | C131: 2022 | D131: 105470 | E131: 28021624 | F131: 2022-05-20T15:40:05 | G131: 1 | I131: 1
A132: 3 | B132: 5 | C132: 2022 | D132: 105470 | E132: 32101410 | F132: 2022-05-20T15:40:05 | G132: 3 | H132: 0 | I132: 3 | J132: 0 | K132: 0 | L132: 0 | M132: 0 | N132: 3 | O132: 0 | P132: 0
A133: 3 | B133: 5 | C133: 2022 | D133: 105470 | E133: 32101430 | F133: 2022-05-20T15:40:05 | G133: 1 | H133: 0 | I133: 1 | J133: 0 | K133: 0 | L133: 0 | M133: 0 | N133: 1 | O133: 0 | P133: 0
A134: 2 | B134: 5 | C134: 2022 | D134: 105472 | E134: 01010203 | F134: 2022-05-20T15:40:07 | G134: 2 | P134: 2 | Z134: 2 | AA134: 2 | AB134: 0
A135: 2 | B135: 5 | C135: 2022 | D135: 105472 | E135: 01110107 | F135: 2022-05-20T15:40:07 | G135: 1 | K135: 1 | Z135: 1 | AA135: 1 | AC135: 1 | AD135: 1 | AE135: 1 | AF135: 0
A136: 2 | B136: 5 | C136: 2022 | D136: 105472 | E136: 01010603 | F136: 2022-05-20T15:40:07 | G136: 9 | N136: 1 | P136: 2 | Q136: 2 | R136: 1 | S136: 2 | T136: 1 | Z136: 9 | AA136: 9
A137: 2 | B137: 5 | C137: 2022 | D137: 105472 | E137: 01010403 | F137: 2022-05-20T15:40:07 | G137: 9 | K137: 1 | L137: 1 | M137: 3 | O137: 2 | P137: 2 | Z137: 9 | AA137: 9
A138: 3 | B138: 5 | C138: 2022 | D138: 105468 | E138: 02021730 | F138: 2022-05-20T15:37:07 | G138: 5 | H138: 3 | I138: 2 | Z138: 2 | AB138: 1 | AC138: 2
A139: 3 | B139: 5 | C139: 2022 | D139: 105468 | E139: 03500020 | F139: 2022-05-20T15:37:07 | G139: 5 | H139: 3 | I139: 2 | Z139: 2 | AB139: 1 | AC139: 2
A140: 3 | B140: 5 | C140: 2022 | D140: 105468 | E140: 02021740 | F140: 2022-05-20T15:37:07 | G140: 2 | H140: 1 | I140: 1 | M140: 1 | R140: 1 | V140: 0
A141: 3 | B141: 5 | C141: 2022 | D141: 105468 | E141: 02010320 | F141: 2022-05-20T15:37:07 | G141: 2 | H141: 1 | I141: 1 | M141: 1 | R141: 1 | V141: 0
A142: 3 | B142: 5 | C142: 2022 | D142: 105468 | E142: A0200001 | F142: 2022-05-20T15:37:07 | G142: 2 | H142: 1 | I142: 1 | P142: 1 | S142: 1 | T142: 0 | U142: 0
A143: 3 | B143: 5 | C143: 2022 | D143: 105468 | E143: 03600140 | F143: 2022-05-20T15:37:07 | G143: 1 | H143: 0 | I143: 1 | S143: 1 | T143: 0 | U143: 0
A144: 3 | B144: 5 | C144: 2022 | D144: 105468 | E144: 03600150 | F144: 2022-05-20T15:37:07 | G144: 1 | H144: 1 | I144: 0 | P144: 1 | T144: 0 | U144: 0
A145: 3 | B145: 5 | C145: 2022 | D145: 105468 | E145: 03500200 | F145: 2022-05-20T15:37:07 | G145: 2
A146: 3 | B146: 5 | C146: 2022 | D146: 105468 | E146: 03020702 | F146: 2022-05-20T15:37:07 | G146: 31 | H146: 16 | I146: 15 | J146: 2 | K146: 1 | L146: 8 | M146: 9 | N146: 3 | O146: 5 | P146: 3 | AT146: 31 | AU146: 0 | AV146: 0 | AW146: 0 | AX146: 0
A147: 3 | B147: 5 | C147: 2022 | D147: 105468 | E147: 04050110 | F147: 2022-05-20T15:37:07 | G147: 12 | H147: 4 | I147: 8 | J147: 1 | K147: 1 | M147: 2 | O147: 1 | T147: 1 | Z147: 1 | AE147: 1 | AK147: 1 | AN147: 1 | AO147: 1 | AQ147: 1 | AT147: 12 | AU147: 0 | AV147: 0 | AW147: 0 | AX147: 0
A148: 3 | B148: 5 | C148: 2022 | D148: 105468 | E148: 04050120 | F148: 2022-05-20T15:37:07 | G148: 1 | H148: 0 | I148: 1 | AO148: 1 | AT148: 1 | AU148: 0 | AV148: 0 | AW148: 0 | AX148: 0
A149: 3 | B149: 5 | C149: 2022 | D149: 105468 | E149: 03020908 | F149: 2022-05-20T15:37:07 | G149: 4 | H149: 3 | I149: 1 | N149: 2 | T149: 1 | AC149: 1 | AT149: 4 | AU149: 0 | AV149: 0 | AW149: 0 | AX149: 2
A150: 3 | B150: 5 | C150: 2022 | D150: 105468 | E150: 04040400 | F150: 2022-05-20T15:37:07 | G150: 3
A151: 3 | B151: 5 | C151: 2022 | D151: 105468 | E151: 04050140 | F151: 2022-05-20T15:37:07 | G151: 7 | H151: 7 | J151: 7
A152: 3 | B152: 5 | C152: 2022 | D152: 105468 | E152: 04040412 | F152: 2022-05-20T15:37:07 | G152: 176 | I152: 176 | K152: 456 | M152: 456 | O152: 176 | P152: 126 | Q152: 0 | R152: 403 | S152: 0
A153: 3 | B153: 5 | C153: 2022 | D153: 105468 | E153: 04040413 | F153: 2022-05-20T15:37:07 | G153: 53 | I153: 53 | K153: 53 | M153: 53 | O153: 53
A154: 3 | B154: 5 | C154: 2022 | D154: 105468 | E154: 04050210 | F154: 2022-05-20T15:37:07 | G154: 7 | I154: 7 | K154: 7 | M154: 7 | O154: 7
A155: 3 | B155: 5 | C155: 2022 | D155: 105468 | E155: 04040414 | F155: 2022-05-20T15:37:07 | G155: 23 | J155: 7 | K155: 6 | L155: 4 | O155: 6 | Q155: 9
A156: 3 | B156: 5 | C156: 2022 | D156: 105468 | E156: 04040418 | F156: 2022-05-20T15:37:07 | G156: 12 | H156: 4 | I156: 8 | J156: 1 | K156: 1 | M156: 2 | O156: 1 | T156: 1 | Z156: 1 | AE156: 1 | AK156: 1 | AN156: 1 | AO156: 1 | AQ156: 1 | AT156: 12 | AU156: 0
A157: 3 | B157: 5 | C157: 2022 | D157: 105468 | E157: 04040419 | F157: 2022-05-20T15:37:07 | G157: 3 | H157: 2 | I157: 1 | K157: 1 | L157: 1 | AP157: 1 | AT157: 3 | AU157: 0
A158: 3 | B158: 5 | C158: 2022 | D158: 105468 | E158: 01080011 | F158: 2022-05-20T15:37:07 | G158: 1 | N158: 1 | U158: 0 | V158: 0
A159: 3 | B159: 5 | C159: 2022 | D159: 105468 | E159: 01090060 | F159: 2022-05-20T15:37:07 | G159: 1 | I159: 1 | U159: 0 | V159: 0
A160: 3 | B160: 5 | C160: 2022 | D160: 105468 | E160: 01080013 | F160: 2022-05-20T15:37:07 | G160: 1 | M160: 1 | U160: 0 | V160: 0
A161: 3 | B161: 5 | C161: 2022 | D161: 105468 | E161: 05225100 | F161: 2022-05-20T15:37:07 | G161: 1 | H161: 1
A162: 3 | B162: 5 | C162: 2022 | D162: 105468 | E162: 06020208 | F162: 2022-05-20T15:37:07 | G162: 7 | H162: 2 | I162: 5 | N162: 1 | O162: 1 | R162: 1 | W162: 1 | AG162: 2 | AM162: 1 | AR162: 7 | AS162: 1 | AT162: 0 | AU162: 0 | AV162: 0
A163: 3 | B163: 5 | C163: 2022 | D163: 105468 | E163: 08210005 | F163: 2022-05-20T15:37:07 | G163: 23 | H163: 9 | I163: 14 | K163: 1 | L163: 1 | M163: 1 | P163: 1 | Q163: 1 | V163: 1 | X163: 2 | Y163: 1 | Z163: 1 | AA163: 3 | AC163: 3 | AE163: 1 | AF163: 1 | AH163: 2 | AK163: 1 | AO163: 1 | AQ163: 1 | AR163: 23 | AS163: 0
A164: 3 | B164: 5 | C164: 2022 | D164: 105468 | E164: 19120202 | F164: 2022-05-20T15:37:07 | G164: 9 | H164: 4 | I164: 5 | AG164: 1 | AJ164: 2 | AK164: 2 | AN164: 1 | AP164: 1 | AQ164: 2 | AR164: 0 | AS164: 0 | AT164: 0 | AU164: 0 | AV164: 0 | AX164: 0
A165: 3 | B165: 5 | C165: 2022 | D165: 105468 | E165: 19184100 | F165: 2022-05-20T15:37:07 | G165: 9 | H165: 4 | I165: 5 | AG165: 1 | AJ165: 2 | AK165: 2 | AN165: 1 | AP165: 1 | AQ165: 2 | AR165: 0 | AS165: 0 | AT165: 0 | AU165: 0 | AV165: 0 | AX165: 0
A166: 3 | B166: 5 | C166: 2022 | D166: 105468 | E166: 19120603 | F166: 2022-05-20T15:37:07 | G166: 19 | H166: 0 | I166: 19 | Q166: 2 | S166: 1 | U166: 2 | W166: 4 | Y166: 1 | AA166: 2 | AC166: 4 | AE166: 1 | AI166: 1 | AK166: 1 | AR166: 0 | AS166: 0 | AT166: 0 | AU166: 0 | AV166: 0 | AW166: 0 | AX166: 0
A167: 3 | B167: 5 | C167: 2022 | D167: 105468 | E167: 19182020 | F167: 2022-05-20T15:37:07 | G167: 17 | H167: 0 | I167: 17 | Q167: 2 | S167: 1 | U167: 2 | W167: 3 | Y167: 2 | AA167: 2 | AC167: 4 | AE167: 1 | AR167: 0 | AS167: 0 | AT167: 0 | AU167: 0 | AV167: 0 | AW167: 0 | AX167: 0
A168: 3 | B168: 5 | C168: 2022 | D168: 105468 | E168: 19180900 | F168: 2022-05-20T15:37:07 | G168: 1 | I168: 1 | J168: 1 | K168: 1
A169: 3 | B169: 5 | C169: 2022 | D169: 105468 | E169: 23080500 | F169: 2022-05-20T15:37:07 | G169: 1 | H169: 0 | I169: 1 | S169: 1 | AP169: 1
A170: 3 | B170: 5 | C170: 2022 | D170: 105468 | E170: 26274601 | F170: 2022-05-20T15:37:07 | G170: 1 | H170: 1 | P170: 1 | R170: 0
A171: 3 | B171: 5 | C171: 2022 | D171: 105468 | E171: 26280050 | F171: 2022-05-20T15:37:07 | G171: 4 | L171: 4
A172: 3 | B172: 5 | C172: 2022 | D172: 105468 | E172: 26280060 | F172: 2022-05-20T15:37:07 | G172: 7 | L172: 7
A173: 3 | B173: 5 | C173: 2022 | D173: 105468 | E173: 26280070 | F173: 2022-05-20T15:37:07 | G173: 8 | L173: 8
A174: 3 | B174: 5 | C174: 2022 | D174: 105468 | E174: 26280080 | F174: 2022-05-20T15:37:07 | G174: 6 | L174: 6
A175: 3 | B175: 5 | C175: 2022 | D175: 105468 | E175: 26280090 | F175: 2022-05-20T15:37:07 | G175: 25 | L175: 25
A176: 3 | B176: 5 | C176: 2022 | D176: 105468 | E176: 26280100 | F176: 2022-05-20T15:37:07 | G176: 42 | L176: 42
A177: 3 | B177: 5 | C177: 2022 | D177: 105468 | E177: 27500140 | F177: 2022-05-20T15:37:07 | G177: 1 | H177: 1
A178: 3 | B178: 5 | C178: 2022 | D178: 105468 | E178: 27500110 | F178: 2022-05-20T15:37:07 | G178: 1 | P178: 1
A179: 3 | B179: 5 | C179: 2022 | D179: 105468 | E179: 28020500 | F179: 2022-05-20T15:37:07 | G179: 2 | H179: 2 | I179: 0 | AH179: 1 | AJ179: 1 | AW179: 2
A180: 3 | B180: 5 | C180: 2022 | D180: 105468 | E180: 28020550 | F180: 2022-05-20T15:37:07 | G180: 2 | H180: 2 | I180: 0 | AH180: 1 | AJ180: 1 | AW180: 2
A181: 3 | B181: 5 | C181: 2022 | D181: 105468 | E181: 28014800 | F181: 2022-05-20T15:37:07 | G181: 2 | AF181: 1 | AH181: 1 | AU181: 2
A182: 3 | B182: 5 | C182: 2022 | D182: 105468 | E182: 28022200 | F182: 2022-05-20T15:37:07 | G182: 2 | AF182: 1 | AH182: 1 | AU182: 2
A183: 3 | B183: 5 | C183: 2022 | D183: 105468 | E183: 28011000 | F183: 2022-05-20T15:37:07 | G183: 6 | I183: 6
A184: 3 | B184: 5 | C184: 2022 | D184: 105468 | E184: 28020660 | F184: 2022-05-20T15:37:07 | G184: 11 | I184: 11
A185: 3 | B185: 5 | C185: 2022 | D185: 105468 | E185: 28011500 | F185: 2022-05-20T15:37:07 | H185: 13
A186: 3 | B186: 5 | C186: 2022 | D186: 105468 | E186: 28011700 | F186: 2022-05-20T15:37:07 | H186: 14
A187: 3 | B187: 5 | C187: 2022 | D187: 105468 | E187: 28011600 | F187: 2022-05-20T15:37:07 | H187: 11
A188: 3 | B188: 5 | C188: 2022 | D188: 105468 | E188: 29000017 | F188: 2022-05-20T15:37:07 | G188: 1 | J188: 1
A189: 3 | B189: 5 | C189: 2022 | D189: 105468 | E189: 29000018 | F189: 2022-05-20T15:37:07 | G189: 1 | J189: 1 | Q189: 0 | R189: 0 | S189: 1
A190: 3 | B190: 5 | C190: 2022 | D190: 105468 | E190: 29000030 | F190: 2022-05-20T15:37:07 | G190: 1
A191: 3 | B191: 5 | C191: 2022 | D191: 105468 | E191: 29000031 | F191: 2022-05-20T15:37:07 | G191: 1 | Q191: 0 | R191: 0 | S191: 1
A192: 3 | B192: 5 | C192: 2022 | D192: 105468 | E192: 32101410 | F192: 2022-05-20T15:37:07 | G192: 36 | H192: 0 | I192: 36 | J192: 0 | K192: 0 | L192: 3 | M192: 0 | N192: 33 | O192: 0 | P192: 0
A193: 3 | B193: 5 | C193: 2022 | D193: 105468 | E193: 32101430 | F193: 2022-05-20T15:37:07 | G193: 10 | H193: 0 | I193: 10 | J193: 0 | K193: 0 | L193: 0 | M193: 0 | N193: 10 | O193: 0 | P193: 0
A194: 2 | B194: 5 | C194: 2022 | D194: 105472 | E194: 02010101 | F194: 2022-05-20T15:40:07 | G194: 2 | H194: 1 | I194: 1 | K194: 1 | L194: 1 | AM194: 2 | AN194: 2 | AP194: 0
A195: 2 | B195: 5 | C195: 2022 | D195: 105472 | E195: 02010201 | F195: 2022-05-20T15:40:07 | G195: 6 | H195: 3 | I195: 3 | L195: 2 | Q195: 2 | T195: 1 | X195: 1 | AM195: 6 | AN195: 1 | AP195: 0
A196: 2 | B196: 5 | C196: 2022 | D196: 105472 | E196: 02010103 | F196: 2022-05-20T15:40:07 | G196: 2 | H196: 1 | I196: 1 | J196: 2 | AM196: 2 | AN196: 1 | AP196: 0
A197: 2 | B197: 5 | C197: 2022 | D197: 105472 | E197: 03010501 | F197: 2022-05-20T15:40:07 | G197: 19 | H197: 4 | I197: 15 | AA197: 1 | AE197: 1 | AF197: 1 | AG197: 3 | AI197: 1 | AJ197: 1 | AK197: 2 | AM197: 2 | AN197: 1 | AO197: 1 | AP197: 1 | AQ197: 4 | AR197: 19
A198: 2 | B198: 5 | C198: 2022 | D198: 105472 | E198: 02021740 | F198: 2022-05-20T15:40:07 | G198: 1 | H198: 0 | I198: 1 | K198: 1 | V198: 0
A199: 2 | B199: 5 | C199: 2022 | D199: 105472 | E199: 02010320 | F199: 2022-05-20T15:40:07 | G199: 1 | H199: 0 | I199: 1 | K199: 1 | V199: 0
A200: 2 | B200: 5 | C200: 2022 | D200: 105472 | E200: 02021760 | F200: 2022-05-20T15:40:07 | G200: 2 | H200: 1 | I200: 1 | J200: 1 | K200: 0 | L200: 0 | M200: 1
... 4300 more rows
